{"text_format":"1","workbook":"xlsx","n_sheets":5,"sheets":["18 lutego","marzec","kwiecień","maj","21 maja"],"not_rendered":{"charts":0,"images":0,"macros":0,"external_links":0,"defined_names":0,"comments":0,"pivot_tables":0},"unopened":[],"bounds":{"document_bytes":16777216,"sheet_cells":100000,"rows_first":2000,"rows_last":500,"rows_between":2000,"halvings":0,"cell_chars":16384,"cell_head_chars":4096},"cells_cut":0,"cells_raw":0,"read":"whole","date_system":"1900"}

{"sheet":"18 lutego","index":0,"n_rows":127,"n_cols":8,"rows_kept":127,"cut":false,"hidden":false,"merged":[[126,0,126,3]]}
[]
[]
[]
[null,null,null,null,"Załącznik nr 1"]
[null,null,null,null,"do uchwały nr XXVI/ 128 /09 "]
[null,null,null,null,"Rady Miejskiej w Mordach"]
["Dochody",null,null,null,"z dnia 18 lutego 2009r."]
[]
[]
[]
["Dział","Rozdział*","§","Źródło dochodów","Plan na 2009 rok","Zmniejszenia","Zwiększenia","Plan po zmianach"]
[1,2,3,4,5,6,7,8]
["010",null,null,"Rolnictwo i łowiectwo",{"$f":"E14+E17","v":14676},{"$f":"F14+F17","v":0},{"$f":"G14+G17","v":0},{"$f":"E13-F13+G13","v":14676}]
[null,"01010",null,"Infrastruktura wodociągowa i sanitacyjna wsi",{"$f":"SUM(E15)","v":10000},{"$f":"SUM(F15)","v":0},{"$f":"SUM(G15)","v":0},{"$f":"E14-F14+G14","v":10000}]
[null,null,6290,"Środki na dofinansowanie własnych inwestycji gmin( związków gmin), powiatów(związków powiatów), samorządów województw, pozyskane z innych źródeł",10000,null,null,{"$f":"E15-F15+G15","v":10000}]
[null,null,6300,"Wpływy z tytułu pomocy finansowej udzielanej między jednostkami samorządu terytorialnego na dofinansowanie własnych zadań inwestycyjnych i zakupów inwestycyjnych",0,null,null,0]
[null,"01095",null,"Pozostała działalność",{"$f":"SUM(E18:E19)","v":4676},{"$f":"SUM(F18:F19)","v":0},{"$f":"SUM(G18:G19)","v":0},4676]
[null,null,2010,"Dotacje celowe otrzymane z budżetu państwa na realizację zadań bieżących z zakresu administracji rządowej oraz innych zadań zleconych gminie(związkom gmin) ustawami",null,null,null,{"$f":"E18-F18+G18","v":0}]
[null,null,"0750","Dochody z najmu i dzierżawy składników majątkowych Skarbu Państwa, jednostek samorządu terytorialnego lub innych jednostek zaliczanych do sektora finansów publicznych oraz umów o podobnym charakterze",4676,null,null,{"$f":"E19-F19+G19","v":4676}]
["600",null,null,"Transport i łączność",{"$f":"E21+E24","v":440192},{"$f":"F21+F24","v":0},{"$f":"G21+G24","v":0},440192]
[null,"60014",null,"Drogi publiczne powiatowe",{"$f":"SUM(E22:E23)","v":15192},{"$f":"SUM(F22:F23)","v":0},{"$f":"SUM(G22:G23)","v":0},15192]
[null,null,2320,"Dotacje celowe otrzymane z powiatu na zadania bieżące realizowane na podstawie porozumień(umów) między jst",15192,null,null,15192]
[null,null,6300,"Wpływy z tytułu pomocy finansowej udzielanej między jednostkami samorządu terytorialnego na dofinansowanie własnych zadań inwestycyjnych i zakupów inwestycyjnych",null,null,null,0]
[null,"60016",null,"Drogi publiczne gminne",{"$f":"SUM(E25:E26)","v":425000},{"$f":"SUM(F25:F26)","v":0},{"$f":"SUM(G25)","v":0},425000]
[null,null,6260,"Dotacje otrzymane z funduszy celowych na finansowanie lub dofinansowanie kosztów realizacjiinwestycji i zakupów inwestycyjnych jednostek sektora finansów publicznych",null,null,null,0]
[null,null,6330,"Dotacje celowe otrzymane z budżetu państwa na  realizację inwestycji i zakupów   inwestycyjnych własnych gmin (związków gmin) ",425000,0,null,425000]
["700",null,null,"Gospodarka mieszkaniowa ",{"$f":"E28","v":288430},{"$f":"F28","v":0},{"$f":"G28","v":0},288430]
[null,"70005",null,"Gospodarka gruntami i nieruchomościami",{"$f":"SUM(E29:E36)","v":288430},{"$f":"SUM(F29:F36)","v":0},{"$f":"SUM(G29:G36)","v":0},288430]
[null,null,"0470","Wpływy z opłat za zarząd, użytkowanie i użytkowanie wieczyste nieruchomości",8117,null,null,8117]
[null,null,"0690","Wpływy z różnych opłat",0,null,null,0]
[null,null,"0750","Dochody z najmu i dzierżawy składników majątkowych Skarbu Państwa, jednostek samorządu terytorialnego lub innych jednostek zaliczanych do sektora finansów publicznych oraz umów o podobnym charakterze",73800,null,null,73800]
[null,null,"0760","Wpływy z tytułu przekształcenia prawa użytkowania wieczystego przysługującego osobom fizycznym w prawo włsności",0,null,null,0]
[null,null,"0770","Wpłaty z tytułu odpłatnego nabycia prawa własności oraz prawa użytkowania wieczystego nieruchomości ",200000,null,null,200000]
[null,null,"0830","Wpływy z usług",6013,null,null,6013]
[null,null,"0970","Wpływy z różnych dochodów",0,null,null,0]
[null,null,"0920","Pozostałe odsetki",500,null,null,500]
["710",null,null,"Działalność usługowa ",{"$f":"E38","v":0},{"$f":"F38","v":0},{"$f":"G38","v":0},0]
[null,"71035",null,"Cmentarze",{"$f":"SUM(E39)","v":0},{"$f":"SUM(F39)","v":0},{"$f":"SUM(G39)","v":0},0]
[null,null,"2020","Dotacje celowe otrzymane z budżetu państwa na zadania bieżące realizowane przez gminę na podstawie porozumień z organizacjami administracji rządowej",null,null,null,0]
["750",null,null,"Administracja publiczna",{"$f":"E41+E44","v":79787},{"$f":"F41+F44","v":0},{"$f":"G41+G44","v":0},79787]
[null,"75011",null,"Urzędy wojewódzkie",{"$f":"SUM(E42:E43)","v":73287},{"$f":"SUM(F42:F43)","v":0},{"$f":"SUM(G42:G43)","v":0},73287]
[null,null,"2010","Dotacje celowe otrzymane z budżetu państwa na realizację zadań bieżących z zakresu administracji rządowej oraz innych zadań zleconych gminie(związkom gmin) ustawami",71287,null,null,71287]
[null,null,"2360","Dochody jednostek samorządu terytorialnego związane z realizacją zadań z zakresu administracji rządowej oraz innych zadań zleconych ustawami",2000,null,null,2000]
[null,"75023",null,"Urzędy gmin(miast i miast na prawach pow.)",{"$f":"SUM(E45:E47)","v":6500},{"$f":"SUM(F45:F47)","v":0},{"$f":"SUM(G45:G47)","v":0},6500]
[null,null,"0690","Wpływy z różnych opłat",3500,null,null,3500]
[null,null,"0830","Wpływy z usług",2000,null,null,2000]
[null,null,"0970","Wpływy z różnych dochodów",1000,null,null,1000]
["751",null,null,"Urzędy naczelnych organów władzypaństwowej, kontroli i ochrony prawa oraz sądownictwa",{"$f":"E49","v":1026},{"$f":"F49","v":0},{"$f":"G49","v":0},1026]
[null,"75101",null,"Urzędy naczelnych organów władzypaństwowej, kontroli i ochrony prawa ",{"$f":"SUM(E50)","v":1026},{"$f":"SUM(F50)","v":0},{"$f":"SUM(G50)","v":0},1026]
[null,null,"2010","Dotacje celowe otrzymane z budżetu państwa na realizację zadań bieżących z zakresu administracji rządowej oraz innych zadań zleconych gminie(związkom gmin) ustawami",1026,null,null,1026]
["754",null,null,"Bezpieczeństwo publiczne i ochrona przeciwpożarowa",{"$f":"E53+E55","v":400},{"$f":"F53+F55","v":0},{"$f":"G52+G53","v":0},400]
[null,"75412",null,"Ochotnicze straże pożarne",{"$f":"E53","v":0},{"$f":"F53","v":0},{"$f":"G53+G54","v":0},0]
[null,null,"2710","Dotacja celowa na pomoc finansową udzielaną między jednostkami samorządu terytorialnego na dofinansowanie własnych zadań bieżących",null,null,null,0]
[null,null,"6300","Wpływy z tytułu pomocy finansowej udzielanej miedzy JST na dofinansowanie własnych zadań inwestycyjnych i zakupów inwestycyjnych",null,null,null,0]
[null,"75414",null,"Obrona cywilna",{"$f":"SUM(E56)","v":400},{"$f":"SUM(F56)","v":0},{"$f":"SUM(G56)","v":0},400]
[null,null,"2010","Dotacje celowe otrzymane z budżetu państwa na realizację zadań bieżących z zakresu administracji rządowej oraz innych zadań zleconych gminie(związkom gmin) ustawami",400,null,null,400]
["756",null,null,"Dochody od osób prawnych, od osób fizycznych i od in nych jrednostek nieposiadających osobowości prawnej oraz wydatki związane z ich poborem",{"$f":"E58+E60+E66+E75+E82","v":2799568},{"$f":"F58+F60+F66+F75+F82","v":0},{"$f":"G58+G60+G66+G75+G82","v":0},2799568]
[null,"75601",null,"Wpływy z podatku dochodowego od osób fizycznych",{"$f":"SUM(E59)","v":1500},{"$f":"SUM(F59)","v":0},{"$f":"SUM(G59)","v":0},1500]
[null,null,"0350","Podatek od działalnosci gospodarczej osób fizycznych opłacany w formie karty podatkowej",1500,null,null,1500]
[null,"75615",null,"Wpływy z podatku rolnego, podatku leśnego,podatku od czynności cywilnoprawnych, podatku od spadków i darowizn oraz podatków i opłat lokalnych od osób prawnych i innych jenostek organizacyjnych",{"$f":"SUM(E61:E65)","v":506482},{"$f":"SUM(F61:F65)","v":0},{"$f":"SUM(G61:G65)","v":0},506482]
[null,null,"0310","Podatek od nieruchomości",492000,null,null,492000]
[null,null,"0320","Podatek rolny",770,null,null,770]
[null,null,"0330","Podatek leśny",10365,null,null,10365]
[null,null,"0340","Podatek od środków transportowych",2347,null,null,2347]
[null,null,"0910","Odsetki od nieterminowych wpłat z tytułu podatków i opłat",1000,null,null,1000]
[null,"75616",null,"Wpływy z podatku rolnego, podatku leśnego, podatku od spadków i darowizn, podatku od czynności cywilnoprawnych oraz podatków i opłat lokalnych od osób fizycznych",{"$f":"SUM(E67:E74)","v":1036900},{"$f":"SUM(F67:F74)","v":0},{"$f":"SUM(G67:G74)","v":0},1036900]
[null,null,"0310","Podatek od nieruchomości",204500,null,null,204500]
[null,null,"0320","Podatek rolny",604000,null,null,604000]
[null,null,"0330","Podatek leśny",74000,null,null,74000]
[null,null,"0340","Podatek od środków transportowych",74400,null,null,74400]
[null,null,"0360","Podatek od spadków i darowizn",10000,null,null,10000]
[null,null,"0430","Wpływy z opłaty targowej",6500,null,null,6500]
[null,null,"0500","Podatek od czynności cywilnoprawnych",53500,null,null,53500]
[null,null,"0910","Odsetki od nieterminowych wpłat z tytułu podatków i opłat",10000,null,null,10000]
[null,"75618",null,"Wpływy z innych opłat stanowiących dochody jednostek samorządu terytorialnego na podstawie ustaw",{"$f":"SUM(E76:E81)","v":65000},{"$f":"SUM(F76:F81)","v":0},{"$f":"SUM(G76:G81)","v":0},65000]
[null,null,"0400","Wpływy z opłaty produktowej",500,null,null,500]
[null,null,"0410","Wpływy z opłaty skarbowej",27000,null,null,27000]
[null,null,"0460","Wpływy z opłaty eksploatacyjnej",4000,null,null,4000]
[null,null,"0480","Wpływy z opłat zawydawanie  zezwoleń na sprzedaż alkoholu",30500,null,null,30500]
[null,null,"0490","Wpływy z innych lokalnych opłat pobieranych przez jednostki samorządu terytorialnego na podstawie odrębnych ustaw",3000,null,null,3000]
[null,null,"0910","Odsetki od nieterminowych wpłat z tytułu podatków i opłat",null,null,null,0]
[null,"75621",null,"Udziały gmin w podatkach stanowiących dochód budżetu państwa",{"$f":"SUM(E83:E84)","v":1189686},{"$f":"SUM(F83:F84)","v":0},{"$f":"SUM(G83:G84)","v":0},1189686]
[null,null,"0010","Podatek dochodowy od osób fizycznych",1183186,null,null,1183186]
[null,null,"0020","Podatek dochodowy od osób prawnych",6500,null,null,6500]
["758",null,null,"Różne rozliczenia",{"$f":"E86+E88+E90+E92","v":7648421},{"$f":"F86+F88+F90+F92","v":0},{"$f":"G86+G88+G90+G92","v":37318},7685739]
[null,"75801",null,"Część oświatowa subwencji ogólnej dla jednostek samorządu terytorialnego",{"$f":"SUM(E87)","v":4364128},{"$f":"SUM(F87)","v":0},{"$f":"SUM(G87)","v":37318},4401446]
[null,null,"2920","Subwencje ogólne z budźetu państwa",4364128,null,37318,4401446]
[null,"75807",null,"Część wyrównawcza subwencji ogólnej dla gmin",{"$f":"SUM(E89)","v":3235728},{"$f":"SUM(F89)","v":0},{"$f":"SUM(G89)","v":0},3235728]
[null,null,"2920","Subwencje ogólne z budżetu państwa",3235728,null,null,3235728]
[null,"75814",null,"Różne rozliczenia finansowe",{"$f":"SUM(E91)","v":10000},{"$f":"SUM(F91)","v":0},{"$f":"SUM(G91)","v":0},10000]
[null,null,"0920","Pozostałe odsetki",10000,null,null,10000]
[null,"75831",null,"Część równoważąca subwencje ogólne dla gmin",{"$f":"SUM(E93)","v":38565},{"$f":"SUM(F93)","v":0},{"$f":"SUM(G93)","v":0},38565]
[null,null,"2920","Subwencje ogólne z budżetu państwa",38565,null,null,38565]
["801",null,null,"Oświata i wychowanie ",{"$f":"E95+E98+E100","v":38600},{"$f":"F95+F98+F100","v":0},{"$f":"G95+G98+G100","v":0},38600]
[null,"80101",null,"Szkoły podstawowe",{"$f":"SUM(E96:E97)","v":1000},{"$f":"SUM(F96:F97)","v":0},{"$f":"SUM(G96:G97)","v":0},{"$f":"E95-F95+G95","v":1000}]
[null,null,"2030","Dotacje celowe otrzymane z budżetu państwa na realizację własnych  zadań bieżących gmin (związków gmin)",null,null,null,0]
[null,null,"0920","Pozostałe odsetki",1000,null,null,1000]
[null,"80104",null,"Przedszkola",{"$f":"SUM(E99)","v":37600},{"$f":"SUM(F99)","v":0},{"$f":"SUM(G99)","v":0},37600]
[null,null,"0830","Wpływy z usług",37600,null,null,37600]
[null,"80195",null,"Pozotała działalność",{"$f":"SUM(E101)","v":0},{"$f":"SUM(F101)","v":0},{"$f":"SUM(G101)","v":0},0]
[null,null,"2030","Dotacje celowe otrzymane z budżetu państwa na realizację własnych  zadań bieżących gmin (związków gmin)",null,null,null,0]
["852",null,null,"Pomoc społeczna",{"$f":"E103+E106+E108+E111+E115+E117","v":2063900},{"$f":"F103+F106+F108+F111+F115+F117","v":0},{"$f":"G103+G106+G108+G111+G115+G117","v":173729},2237629]
[null,"85212",null,"Świadczenia rodzinne, zaliczka alimentacyjn a oraz składki na ubezpieczenia emerytalne i rentowe z ubezpieczenia społecznego",{"$f":"SUM(E104:E105)","v":1740000},{"$f":"SUM(F104:F105)","v":0},{"$f":"SUM(G104:G105)","v":0},1740000]
[null,null,"6310","Dotacje celowe otrzymane z budżetu państwa na inwestycje i zakupy inwestycyjne z zakresu administracji rządowej oraz innych zadań zleconych gminom ustawami",null,null,null,5000]
[null,null,"2010","Dotacje celowe otrzymane z budżetu państwa na realizację zadań bieżących z zakresu administracji rządowej oraz innych zadań zleconych gminie(związkom gmin) ustawami",1740000,null,null,1740000]
[null,"85213",null,"Składki na ubezpieczenie zdrowotne opłacane za osoby pobierajace niektóre swiadczenia z pomocy społecznej oraz niektóre świadczenia rodzinne",{"$f":"SUM(E107)","v":7100},{"$f":"SUM(F107)","v":0},{"$f":"SUM(G107)","v":0},7100]
[null,null,"2010","Dotacje celowe otrzymane z budżetu państwa na realizację zadań bieżących z zakresu administracji rządowej oraz innych zadań zleconych gminie(związkom gmin) ustawami",7100,null,null,7100]
[null,"85214",null,"Zasiłki i pomoc w naturze oraz składki na  ubezpieczenia emerytalne i rentowe",{"$f":"SUM(E109:E110)","v":134700},{"$f":"SUM(F109:F110)","v":0},{"$f":"SUM(G109:G110)","v":0},134700]
[null,null,"2010","Dotacje celowe otrzymane z budżetu państwa na realizację zadań bieżących z zakresu administracji rządowej oraz innych zadań zleconych gminie(związkom gmin) ustawami",85000,null,null,85000]
[null,null,"2030","Dotacje celowe otrzymane z budżetu państwa na realizację własnych  zadań bieżących gmin (związków gmin)",49700,null,null,49700]
[null,"85219",null,"Ośrodki pomocy społecznej",{"$f":"SUM(E112:E114)","v":106500},{"$f":"SUM(F112:F114)","v":0},{"$f":"SUM(G112:G114)","v":0},106500]
[null,null,"2030","Dotacje celowe otrzymane z budżetu państwa na realizację własnych  zadań bieżących gmin (związków gmin)",104000,null,null,104000]
[null,null,"0830","Wpływy z usług",1500,null,null,1500]
[null,null,"0920","Pozostale odsetki",1000,null,null,1000]
[null,"85228",null,"Usługi opiekuńcze i specjalistyczne usługi opiekuńcze",{"$f":"SUM(E116)","v":15600},{"$f":"SUM(F116)","v":0},{"$f":"SUM(G116)","v":3150},18750]
[null,null,"2010","Dotacje celowe otrzymane z budżetu państwa na realizację zadań bieżących z zakresu administracji rządowej oraz innych zadań zleconych gminie(związkom gmin) ustawami",15600,null,3150,18750]
[null,"85295",null,"Pozostała działałność",{"$f":"SUM(E118)","v":60000},{"$f":"SUM(F118)","v":0},{"$f":"SUM(G118:G119)","v":170579},230579]
[null,null,"2030","Dotacje celowe otrzymane z budżetu państwa na realizację własnych  zadań bieżących gmin (związków gmin)",60000,null,null,60000]
[null,null,"2023","Dotacje celowe otrzymane z budżetu państwa na zdania bieżące realizowane przez gminę na podstawie porozumień z organami administracji rządowej",null,null,170579,170579]
["854",null,null,"Edukacyjna opieka wychowawcza",{"$f":"SUM(E121)","v":0},0,0,0]
[null,"85415",null,"Pomoc materialna dla uczniów",0,0,0,0]
[null,null,"2030","Dotacje celowe otrzymane z budżetu państwa na realizację własnych  zadań bieżących gmin (związków gmin)",null,null,null,0]
["900",null,null,"Gospodarka komunalna i ochrona środowiska",{"$f":"E124","v":0},{"$f":"F124","v":0},{"$f":"G124","v":0},0]
[null,"90095",null,"Pozostała działalność",{"$f":"SUM(E125)","v":0},{"$f":"SUM(F125)","v":0},{"$f":"SUM(G125)","v":0},0]
[null,null,"2440","Dotacje przekazane z funduszy celowych na realizację zadań bieżących dla jedostek sektora  finansów publicznych",null,null,null,0]
[]
["Dochody ogółem",null,null,null,{"$f":"E13+E20+E27+E40+E48+E51+E57+E85+E94+E102+E37","v":13375000},{"$f":"F13+F20+F27+F40+F48+F51+F57+F85+F94+F102+F37","v":0},{"$f":"G13+G20+G27+G40+G48+G51+G57+G85+G94+G102+G37+G120","v":211047},13586047]

{"sheet":"marzec","index":1,"n_rows":129,"n_cols":8,"rows_kept":129,"cut":false,"hidden":false,"merged":[[128,0,128,3]]}
[]
[]
[]
[null,null,null,null,"Załącznik nr 1"]
[null,null,null,null,"do uchwały nr XXVII/ 136 /09 "]
[null,null,null,null,"Rady Miejskiej w Mordach"]
["Dochody",null,null,null,"z dnia 31 marca 2009r."]
[]
[]
[]
["Dział","Rozdział*","§","Źródło dochodów","Plan na 2009 rok","Zmniejszenia","Zwiększenia","Plan po zmianach"]
[1,2,3,4,5,6,7,8]
["010",null,null,"Rolnictwo i łowiectwo",{"$f":"'18 lutego'!H13","v":14676},{"$f":"F14+F17","v":0},{"$f":"G14+G17","v":0},{"$f":"E13-F13+G13","v":14676}]
[null,"01010",null,"Infrastruktura wodociągowa i sanitacyjna wsi",{"$f":"'18 lutego'!H14","v":10000},{"$f":"SUM(F15)","v":0},{"$f":"SUM(G15)","v":0},{"$f":"E14-F14+G14","v":10000}]
[null,null,6290,"Środki na dofinansowanie własnych inwestycji gmin( związków gmin), powiatów(związków powiatów), samorządów województw, pozyskane z innych źródeł",{"$f":"'18 lutego'!H15","v":10000},null,null,{"$f":"E15-F15+G15","v":10000}]
[null,null,6300,"Wpływy z tytułu pomocy finansowej udzielanej między jednostkami samorządu terytorialnego na dofinansowanie własnych zadań inwestycyjnych i zakupów inwestycyjnych",{"$f":"'18 lutego'!H16","v":0},null,null,0]
[null,"01095",null,"Pozostała działalność",{"$f":"'18 lutego'!H17","v":4676},{"$f":"SUM(F18:F19)","v":0},{"$f":"SUM(G18:G19)","v":0},4676]
[null,null,2010,"Dotacje celowe otrzymane z budżetu państwa na realizację zadań bieżących z zakresu administracji rządowej oraz innych zadań zleconych gminie(związkom gmin) ustawami",{"$f":"'18 lutego'!H18","v":0},null,null,{"$f":"E18-F18+G18","v":0}]
[null,null,"0750","Dochody z najmu i dzierżawy składników majątkowych Skarbu Państwa, jednostek samorządu terytorialnego lub innych jednostek zaliczanych do sektora finansów publicznych oraz umów o podobnym charakterze",{"$f":"'18 lutego'!H19","v":4676},null,null,{"$f":"E19-F19+G19","v":4676}]
["600",null,null,"Transport i łączność",{"$f":"'18 lutego'!H20","v":440192},{"$f":"F21+F24","v":0},{"$f":"G21+G24","v":0},440192]
[null,"60014",null,"Drogi publiczne powiatowe",{"$f":"'18 lutego'!H21","v":15192},{"$f":"SUM(F22:F23)","v":0},{"$f":"SUM(G22:G23)","v":0},15192]
[null,null,2320,"Dotacje celowe otrzymane z powiatu na zadania bieżące realizowane na podstawie porozumień(umów) między jst",{"$f":"'18 lutego'!H22","v":15192},null,null,15192]
[null,null,6300,"Wpływy z tytułu pomocy finansowej udzielanej między jednostkami samorządu terytorialnego na dofinansowanie własnych zadań inwestycyjnych i zakupów inwestycyjnych",{"$f":"'18 lutego'!H23","v":0},null,null,0]
[null,"60016",null,"Drogi publiczne gminne",{"$f":"'18 lutego'!H24","v":425000},{"$f":"SUM(F25:F26)","v":0},{"$f":"SUM(G25)","v":0},425000]
[null,null,6260,"Dotacje otrzymane z funduszy celowych na finansowanie lub dofinansowanie kosztów realizacjiinwestycji i zakupów inwestycyjnych jednostek sektora finansów publicznych",{"$f":"'18 lutego'!H25","v":0},null,null,0]
[null,null,6330,"Dotacje celowe otrzymane z budżetu państwa na  realizację inwestycji i zakupów   inwestycyjnych własnych gmin (związków gmin) ",{"$f":"'18 lutego'!H26","v":425000},0,null,425000]
["700",null,null,"Gospodarka mieszkaniowa ",{"$f":"'18 lutego'!H27","v":288430},{"$f":"F28","v":0},{"$f":"G28","v":0},288430]
[null,"70005",null,"Gospodarka gruntami i nieruchomościami",{"$f":"'18 lutego'!H28","v":288430},{"$f":"SUM(F29:F36)","v":0},{"$f":"SUM(G29:G36)","v":0},288430]
[null,null,"0470","Wpływy z opłat za zarząd, użytkowanie i użytkowanie wieczyste nieruchomości",{"$f":"'18 lutego'!H29","v":8117},null,null,8117]
[null,null,"0690","Wpływy z różnych opłat",{"$f":"'18 lutego'!H30","v":0},null,null,0]
[null,null,"0750","Dochody z najmu i dzierżawy składników majątkowych Skarbu Państwa, jednostek samorządu terytorialnego lub innych jednostek zaliczanych do sektora finansów publicznych oraz umów o podobnym charakterze",{"$f":"'18 lutego'!H31","v":73800},null,null,73800]
[null,null,"0760","Wpływy z tytułu przekształcenia prawa użytkowania wieczystego przysługującego osobom fizycznym w prawo włsności",{"$f":"'18 lutego'!H32","v":0},null,null,0]
[null,null,"0770","Wpłaty z tytułu odpłatnego nabycia prawa własności oraz prawa użytkowania wieczystego nieruchomości ",{"$f":"'18 lutego'!H33","v":200000},null,null,200000]
[null,null,"0830","Wpływy z usług",{"$f":"'18 lutego'!H34","v":6013},null,null,6013]
[null,null,"0970","Wpływy z różnych dochodów",{"$f":"'18 lutego'!H35","v":0},null,null,0]
[null,null,"0920","Pozostałe odsetki",{"$f":"'18 lutego'!H36","v":500},null,null,500]
["710",null,null,"Działalność usługowa ",{"$f":"'18 lutego'!H37","v":0},{"$f":"F38","v":0},{"$f":"G38","v":0},0]
[null,"71035",null,"Cmentarze",{"$f":"'18 lutego'!H38","v":0},{"$f":"SUM(F39)","v":0},{"$f":"SUM(G39)","v":0},0]
[null,null,"2020","Dotacje celowe otrzymane z budżetu państwa na zadania bieżące realizowane przez gminę na podstawie porozumień z organizacjami administracji rządowej",{"$f":"'18 lutego'!H39","v":0},null,null,0]
["750",null,null,"Administracja publiczna",{"$f":"'18 lutego'!H40","v":79787},{"$f":"F41+F44","v":0},{"$f":"G41+G44","v":0},79787]
[null,"75011",null,"Urzędy wojewódzkie",{"$f":"'18 lutego'!H41","v":73287},{"$f":"SUM(F42:F43)","v":0},{"$f":"SUM(G42:G43)","v":0},73287]
[null,null,"2010","Dotacje celowe otrzymane z budżetu państwa na realizację zadań bieżących z zakresu administracji rządowej oraz innych zadań zleconych gminie(związkom gmin) ustawami",{"$f":"'18 lutego'!H42","v":71287},null,null,71287]
[null,null,"2360","Dochody jednostek samorządu terytorialnego związane z realizacją zadań z zakresu administracji rządowej oraz innych zadań zleconych ustawami",{"$f":"'18 lutego'!H43","v":2000},null,null,2000]
[null,"75023",null,"Urzędy gmin(miast i miast na prawach pow.)",{"$f":"'18 lutego'!H44","v":6500},{"$f":"SUM(F45:F47)","v":0},{"$f":"SUM(G45:G47)","v":0},6500]
[null,null,"0690","Wpływy z różnych opłat",{"$f":"'18 lutego'!H45","v":3500},null,null,3500]
[null,null,"0830","Wpływy z usług",{"$f":"'18 lutego'!H46","v":2000},null,null,2000]
[null,null,"0970","Wpływy z różnych dochodów",{"$f":"'18 lutego'!H47","v":1000},null,null,1000]
["751",null,null,"Urzędy naczelnych organów władzypaństwowej, kontroli i ochrony prawa oraz sądownictwa",{"$f":"'18 lutego'!H48","v":1026},{"$f":"F49+F51","v":0},{"$f":"G49+G51","v":0},{"$f":"H49+H51","v":1026}]
[null,"75101",null,"Urzędy naczelnych organów władzypaństwowej, kontroli i ochrony prawa ",{"$f":"'18 lutego'!H49","v":1026},{"$f":"SUM(F50)","v":0},{"$f":"SUM(G50)","v":0},1026]
[null,null,"2010","Dotacje celowe otrzymane z budżetu państwa na realizację zadań bieżących z zakresu administracji rządowej oraz innych zadań zleconych gminie(związkom gmin) ustawami",{"$f":"'18 lutego'!H50","v":1026},null,null,1026]
[null,"75113",null,"Wybory do Parlamentu Europejskiego",{"$f":"E52","v":0},{"$f":"F52","v":0},{"$f":"G52","v":0},0]
[null,null,"2010","Dotacje celowe otrzymane z budżetu państwa na realizację zadań bieżących z zakresu administracji rządowej oraz innych zadań zleconych gminie(związkom gmin) ustawami",0,null,null,0]
["754",null,null,"Bezpieczeństwo publiczne i ochrona przeciwpożarowa",{"$f":"'18 lutego'!H51","v":400},{"$f":"F55+F57","v":0},{"$f":"G54+G55","v":0},400]
[null,"75412",null,"Ochotnicze straże pożarne",{"$f":"'18 lutego'!H52","v":0},{"$f":"F55","v":0},{"$f":"G55+G56","v":0},0]
[null,null,"2710","Dotacja celowa na pomoc finansową udzielaną między jednostkami samorządu terytorialnego na dofinansowanie własnych zadań bieżących",{"$f":"'18 lutego'!H53","v":0},null,null,0]
[null,null,"6300","Wpływy z tytułu pomocy finansowej udzielanej miedzy JST na dofinansowanie własnych zadań inwestycyjnych i zakupów inwestycyjnych",{"$f":"'18 lutego'!H54","v":0},null,null,0]
[null,"75414",null,"Obrona cywilna",{"$f":"'18 lutego'!H55","v":400},{"$f":"SUM(F58)","v":0},{"$f":"SUM(G58)","v":0},400]
[null,null,"2010","Dotacje celowe otrzymane z budżetu państwa na realizację zadań bieżących z zakresu administracji rządowej oraz innych zadań zleconych gminie(związkom gmin) ustawami",{"$f":"'18 lutego'!H56","v":400},null,null,400]
["756",null,null,"Dochody od osób prawnych, od osób fizycznych i od in nych jrednostek nieposiadających osobowości prawnej oraz wydatki związane z ich poborem",{"$f":"'18 lutego'!H57","v":2799568},{"$f":"F60+F62+F68+F77+F84","v":0},{"$f":"G60+G62+G68+G77+G84","v":0},2799568]
[null,"75601",null,"Wpływy z podatku dochodowego od osób fizycznych",{"$f":"'18 lutego'!H58","v":1500},{"$f":"SUM(F61)","v":0},{"$f":"SUM(G61)","v":0},1500]
[null,null,"0350","Podatek od działalnosci gospodarczej osób fizycznych opłacany w formie karty podatkowej",{"$f":"'18 lutego'!H59","v":1500},null,null,1500]
[null,"75615",null,"Wpływy z podatku rolnego, podatku leśnego,podatku od czynności cywilnoprawnych, podatku od spadków i darowizn oraz podatków i opłat lokalnych od osób prawnych i innych jenostek organizacyjnych",{"$f":"'18 lutego'!H60","v":506482},{"$f":"SUM(F63:F67)","v":0},{"$f":"SUM(G63:G67)","v":0},506482]
[null,null,"0310","Podatek od nieruchomości",{"$f":"'18 lutego'!H61","v":492000},null,null,492000]
[null,null,"0320","Podatek rolny",{"$f":"'18 lutego'!H62","v":770},null,null,770]
[null,null,"0330","Podatek leśny",{"$f":"'18 lutego'!H63","v":10365},null,null,10365]
[null,null,"0340","Podatek od środków transportowych",{"$f":"'18 lutego'!H64","v":2347},null,null,2347]
[null,null,"0910","Odsetki od nieterminowych wpłat z tytułu podatków i opłat",{"$f":"'18 lutego'!H65","v":1000},null,null,1000]
[null,"75616",null,"Wpływy z podatku rolnego, podatku leśnego, podatku od spadków i darowizn, podatku od czynności cywilnoprawnych oraz podatków i opłat lokalnych od osób fizycznych",{"$f":"'18 lutego'!H66","v":1036900},{"$f":"SUM(F69:F76)","v":0},{"$f":"SUM(G69:G76)","v":0},1036900]
[null,null,"0310","Podatek od nieruchomości",{"$f":"'18 lutego'!H67","v":204500},null,null,204500]
[null,null,"0320","Podatek rolny",{"$f":"'18 lutego'!H68","v":604000},null,null,604000]
[null,null,"0330","Podatek leśny",{"$f":"'18 lutego'!H69","v":74000},null,null,74000]
[null,null,"0340","Podatek od środków transportowych",{"$f":"'18 lutego'!H70","v":74400},null,null,74400]
[null,null,"0360","Podatek od spadków i darowizn",{"$f":"'18 lutego'!H71","v":10000},null,null,10000]
[null,null,"0430","Wpływy z opłaty targowej",{"$f":"'18 lutego'!H72","v":6500},null,null,6500]
[null,null,"0500","Podatek od czynności cywilnoprawnych",{"$f":"'18 lutego'!H73","v":53500},null,null,53500]
[null,null,"0910","Odsetki od nieterminowych wpłat z tytułu podatków i opłat",{"$f":"'18 lutego'!H74","v":10000},null,null,10000]
[null,"75618",null,"Wpływy z innych opłat stanowiących dochody jednostek samorządu terytorialnego na podstawie ustaw",{"$f":"'18 lutego'!H75","v":65000},{"$f":"SUM(F78:F83)","v":0},{"$f":"SUM(G78:G83)","v":0},65000]
[null,null,"0400","Wpływy z opłaty produktowej",{"$f":"'18 lutego'!H76","v":500},null,null,500]
[null,null,"0410","Wpływy z opłaty skarbowej",{"$f":"'18 lutego'!H77","v":27000},null,null,27000]
[null,null,"0460","Wpływy z opłaty eksploatacyjnej",{"$f":"'18 lutego'!H78","v":4000},null,null,4000]
[null,null,"0480","Wpływy z opłat zawydawanie  zezwoleń na sprzedaż alkoholu",{"$f":"'18 lutego'!H79","v":30500},null,null,30500]
[null,null,"0490","Wpływy z innych lokalnych opłat pobieranych przez jednostki samorządu terytorialnego na podstawie odrębnych ustaw",{"$f":"'18 lutego'!H80","v":3000},null,null,3000]
[null,null,"0910","Odsetki od nieterminowych wpłat z tytułu podatków i opłat",{"$f":"'18 lutego'!H81","v":0},null,null,0]
[null,"75621",null,"Udziały gmin w podatkach stanowiących dochód budżetu państwa",{"$f":"'18 lutego'!H82","v":1189686},{"$f":"SUM(F85:F86)","v":0},{"$f":"SUM(G85:G86)","v":0},1189686]
[null,null,"0010","Podatek dochodowy od osób fizycznych",{"$f":"'18 lutego'!H83","v":1183186},null,null,1183186]
[null,null,"0020","Podatek dochodowy od osób prawnych",{"$f":"'18 lutego'!H84","v":6500},null,null,6500]
["758",null,null,"Różne rozliczenia",{"$f":"'18 lutego'!H85","v":7685739},{"$f":"F88+F90+F92+F94","v":0},{"$f":"G88+G90+G92+G94","v":0},7685739]
[null,"75801",null,"Część oświatowa subwencji ogólnej dla jednostek samorządu terytorialnego",{"$f":"'18 lutego'!H86","v":4401446},{"$f":"SUM(F89)","v":0},{"$f":"SUM(G89)","v":0},4401446]
[null,null,"2920","Subwencje ogólne z budźetu państwa",{"$f":"'18 lutego'!H87","v":4401446},null,null,4401446]
[null,"75807",null,"Część wyrównawcza subwencji ogólnej dla gmin",{"$f":"'18 lutego'!H88","v":3235728},{"$f":"SUM(F91)","v":0},{"$f":"SUM(G91)","v":0},3235728]
[null,null,"2920","Subwencje ogólne z budżetu państwa",{"$f":"'18 lutego'!H89","v":3235728},null,null,3235728]
[null,"75814",null,"Różne rozliczenia finansowe",{"$f":"'18 lutego'!H90","v":10000},{"$f":"SUM(F93)","v":0},{"$f":"SUM(G93)","v":0},10000]
[null,null,"0920","Pozostałe odsetki",{"$f":"'18 lutego'!H91","v":10000},null,null,10000]
[null,"75831",null,"Część równoważąca subwencje ogólne dla gmin",{"$f":"'18 lutego'!H92","v":38565},{"$f":"SUM(F95)","v":0},{"$f":"SUM(G95)","v":0},38565]
[null,null,"2920","Subwencje ogólne z budżetu państwa",{"$f":"'18 lutego'!H93","v":38565},null,null,38565]
["801",null,null,"Oświata i wychowanie ",{"$f":"'18 lutego'!H94","v":38600},{"$f":"F97+F100+F102","v":0},{"$f":"G97+G100+G102","v":0},38600]
[null,"80101",null,"Szkoły podstawowe",{"$f":"'18 lutego'!H95","v":1000},{"$f":"SUM(F98:F99)","v":0},{"$f":"SUM(G98:G99)","v":0},{"$f":"E97-F97+G97","v":1000}]
[null,null,"2030","Dotacje celowe otrzymane z budżetu państwa na realizację własnych  zadań bieżących gmin (związków gmin)",{"$f":"'18 lutego'!H96","v":0},null,null,0]
[null,null,"0920","Pozostałe odsetki",{"$f":"'18 lutego'!H97","v":1000},null,null,1000]
[null,"80104",null,"Przedszkola",{"$f":"'18 lutego'!H98","v":37600},{"$f":"SUM(F101)","v":0},{"$f":"SUM(G101)","v":0},37600]
[null,null,"0830","Wpływy z usług",{"$f":"'18 lutego'!H99","v":37600},null,null,37600]
[null,"80195",null,"Pozotała działalność",{"$f":"'18 lutego'!H100","v":0},{"$f":"SUM(F103)","v":0},{"$f":"SUM(G103)","v":0},0]
[null,null,"2030","Dotacje celowe otrzymane z budżetu państwa na realizację własnych  zadań bieżących gmin (związków gmin)",{"$f":"'18 lutego'!H101","v":0},null,null,0]
["852",null,null,"Pomoc społeczna",{"$f":"'18 lutego'!H102","v":2237629},{"$f":"F105+F108+F110+F113+F117+F119","v":0},{"$f":"G105+G108+G110+G113+G117+G119","v":0},2237629]
[null,"85212",null,"Świadczenia rodzinne, zaliczka alimentacyjn a oraz składki na ubezpieczenia emerytalne i rentowe z ubezpieczenia społecznego",{"$f":"'18 lutego'!H103","v":1740000},{"$f":"SUM(F106:F107)","v":0},{"$f":"SUM(G106:G107)","v":0},1740000]
[null,null,"6310","Dotacje celowe otrzymane z budżetu państwa na inwestycje i zakupy inwestycyjne z zakresu administracji rządowej oraz innych zadań zleconych gminom ustawami",{"$f":"'18 lutego'!H104","v":5000},null,null,5000]
[null,null,"2010","Dotacje celowe otrzymane z budżetu państwa na realizację zadań bieżących z zakresu administracji rządowej oraz innych zadań zleconych gminie(związkom gmin) ustawami",{"$f":"'18 lutego'!H105","v":1740000},null,null,1740000]
[null,"85213",null,"Składki na ubezpieczenie zdrowotne opłacane za osoby pobierajace niektóre swiadczenia z pomocy społecznej oraz niektóre świadczenia rodzinne",{"$f":"'18 lutego'!H106","v":7100},{"$f":"SUM(F109)","v":0},{"$f":"SUM(G109)","v":0},7100]
[null,null,"2010","Dotacje celowe otrzymane z budżetu państwa na realizację zadań bieżących z zakresu administracji rządowej oraz innych zadań zleconych gminie(związkom gmin) ustawami",{"$f":"'18 lutego'!H107","v":7100},null,null,7100]
[null,"85214",null,"Zasiłki i pomoc w naturze oraz składki na  ubezpieczenia emerytalne i rentowe",{"$f":"'18 lutego'!H108","v":134700},{"$f":"SUM(F111:F112)","v":0},{"$f":"SUM(G111:G112)","v":0},134700]
[null,null,"2010","Dotacje celowe otrzymane z budżetu państwa na realizację zadań bieżących z zakresu administracji rządowej oraz innych zadań zleconych gminie(związkom gmin) ustawami",{"$f":"'18 lutego'!H109","v":85000},null,null,85000]
[null,null,"2030","Dotacje celowe otrzymane z budżetu państwa na realizację własnych  zadań bieżących gmin (związków gmin)",{"$f":"'18 lutego'!H110","v":49700},null,null,49700]
[null,"85219",null,"Ośrodki pomocy społecznej",{"$f":"'18 lutego'!H111","v":106500},{"$f":"SUM(F114:F116)","v":0},{"$f":"SUM(G114:G116)","v":0},106500]
[null,null,"2030","Dotacje celowe otrzymane z budżetu państwa na realizację własnych  zadań bieżących gmin (związków gmin)",{"$f":"'18 lutego'!H112","v":104000},null,null,104000]
[null,null,"0830","Wpływy z usług",{"$f":"'18 lutego'!H113","v":1500},null,null,1500]
[null,null,"0920","Pozostale odsetki",{"$f":"'18 lutego'!H114","v":1000},null,null,1000]
[null,"85228",null,"Usługi opiekuńcze i specjalistyczne usługi opiekuńcze",{"$f":"'18 lutego'!H115","v":18750},{"$f":"SUM(F118)","v":0},{"$f":"SUM(G118)","v":0},18750]
[null,null,"2010","Dotacje celowe otrzymane z budżetu państwa na realizację zadań bieżących z zakresu administracji rządowej oraz innych zadań zleconych gminie(związkom gmin) ustawami",{"$f":"'18 lutego'!H116","v":18750},null,null,18750]
[null,"85295",null,"Pozostała działałność",{"$f":"'18 lutego'!H117","v":230579},{"$f":"SUM(F120)","v":0},{"$f":"SUM(G120:G121)","v":0},230579]
[null,null,"2030","Dotacje celowe otrzymane z budżetu państwa na realizację własnych  zadań bieżących gmin (związków gmin)",{"$f":"'18 lutego'!H118","v":60000},null,null,60000]
[null,null,"2023","Dotacje celowe otrzymane z budżetu państwa na zdania bieżące realizowane przez gminę na podstawie porozumień z organami administracji rządowej",{"$f":"'18 lutego'!H119","v":170579},null,null,170579]
["854",null,null,"Edukacyjna opieka wychowawcza",{"$f":"'18 lutego'!H120","v":0},{"$f":"SUM(F123)","v":0},{"$f":"SUM(G123)","v":65304},65304]
[null,"85415",null,"Pomoc materialna dla uczniów",{"$f":"'18 lutego'!H121","v":0},{"$f":"SUM(F124)","v":0},{"$f":"SUM(G124)","v":65304},65304]
[null,null,"2030","Dotacje celowe otrzymane z budżetu państwa na realizację własnych  zadań bieżących gmin (związków gmin)",{"$f":"'18 lutego'!H122","v":0},null,65304,65304]
["900",null,null,"Gospodarka komunalna i ochrona środowiska",{"$f":"'18 lutego'!H123","v":0},{"$f":"F126","v":0},{"$f":"G126","v":0},0]
[null,"90095",null,"Pozostała działalność",{"$f":"'18 lutego'!H124","v":0},{"$f":"SUM(F127)","v":0},{"$f":"SUM(G127)","v":0},0]
[null,null,"2440","Dotacje przekazane z funduszy celowych na realizację zadań bieżących dla jedostek sektora  finansów publicznych",{"$f":"'18 lutego'!H125","v":0},null,null,0]
[]
["Dochody ogółem",null,null,null,{"$f":"'18 lutego'!H127","v":13586047},{"$f":"F13+F20+F27+F40+F48+F53+F59+F87+F96+F104+F37","v":0},{"$f":"G13+G20+G27+G40+G48+G53+G59+G87+G96+G104+G37+G122","v":65304},13651351]

{"sheet":"kwiecień","index":2,"n_rows":129,"n_cols":8,"rows_kept":129,"cut":false,"hidden":false,"merged":[[128,0,128,3]]}
[]
[]
[]
[null,null,null,null,"Załącznik nr 1"]
[null,null,null,null,"do zarządzenia nr 9 /09 "]
[null,null,null,null,"Burmistrza Miasta i Gminy  Mordy"]
["Dochody",null,null,null,"z dnia 29 kwietnia 2009r."]
[]
[]
[]
["Dział","Rozdział*","§","Źródło dochodów","Plan na 2009 rok","Zmniejszenia","Zwiększenia","Plan po zmianach"]
[1,2,3,4,5,6,7,8]
["010",null,null,"Rolnictwo i łowiectwo",{"$f":"marzec!H13","v":14676},{"$f":"F14+F17","v":0},{"$f":"G14+G17","v":0},{"$f":"E13-F13+G13","v":14676}]
[null,"01010",null,"Infrastruktura wodociągowa i sanitacyjna wsi",{"$f":"marzec!H14","v":10000},{"$f":"SUM(F15)","v":0},{"$f":"SUM(G15)","v":0},{"$f":"E14-F14+G14","v":10000}]
[null,null,6290,"Środki na dofinansowanie własnych inwestycji gmin( związków gmin), powiatów(związków powiatów), samorządów województw, pozyskane z innych źródeł",{"$f":"marzec!H15","v":10000},null,null,{"$f":"E15-F15+G15","v":10000}]
[null,null,6300,"Wpływy z tytułu pomocy finansowej udzielanej między jednostkami samorządu terytorialnego na dofinansowanie własnych zadań inwestycyjnych i zakupów inwestycyjnych",{"$f":"marzec!H16","v":0},null,null,0]
[null,"01095",null,"Pozostała działalność",{"$f":"marzec!H17","v":4676},{"$f":"SUM(F18:F19)","v":0},{"$f":"SUM(G18:G19)","v":0},4676]
[null,null,2010,"Dotacje celowe otrzymane z budżetu państwa na realizację zadań bieżących z zakresu administracji rządowej oraz innych zadań zleconych gminie(związkom gmin) ustawami",{"$f":"marzec!H18","v":0},null,null,{"$f":"E18-F18+G18","v":0}]
[null,null,"0750","Dochody z najmu i dzierżawy składników majątkowych Skarbu Państwa, jednostek samorządu terytorialnego lub innych jednostek zaliczanych do sektora finansów publicznych oraz umów o podobnym charakterze",{"$f":"marzec!H19","v":4676},null,null,{"$f":"E19-F19+G19","v":4676}]
["600",null,null,"Transport i łączność",{"$f":"marzec!H20","v":440192},{"$f":"F21+F24","v":0},{"$f":"G21+G24","v":0},440192]
[null,"60014",null,"Drogi publiczne powiatowe",{"$f":"marzec!H21","v":15192},{"$f":"SUM(F22:F23)","v":0},{"$f":"SUM(G22:G23)","v":0},15192]
[null,null,2320,"Dotacje celowe otrzymane z powiatu na zadania bieżące realizowane na podstawie porozumień(umów) między jst",{"$f":"marzec!H22","v":15192},null,null,15192]
[null,null,6300,"Wpływy z tytułu pomocy finansowej udzielanej między jednostkami samorządu terytorialnego na dofinansowanie własnych zadań inwestycyjnych i zakupów inwestycyjnych",{"$f":"marzec!H23","v":0},null,null,0]
[null,"60016",null,"Drogi publiczne gminne",{"$f":"marzec!H24","v":425000},{"$f":"SUM(F25:F26)","v":0},{"$f":"SUM(G25)","v":0},425000]
[null,null,6260,"Dotacje otrzymane z funduszy celowych na finansowanie lub dofinansowanie kosztów realizacjiinwestycji i zakupów inwestycyjnych jednostek sektora finansów publicznych",{"$f":"marzec!H25","v":0},null,null,0]
[null,null,6330,"Dotacje celowe otrzymane z budżetu państwa na  realizację inwestycji i zakupów   inwestycyjnych własnych gmin (związków gmin) ",{"$f":"marzec!H26","v":425000},0,null,425000]
["700",null,null,"Gospodarka mieszkaniowa ",{"$f":"marzec!H27","v":288430},{"$f":"F28","v":0},{"$f":"G28","v":0},288430]
[null,"70005",null,"Gospodarka gruntami i nieruchomościami",{"$f":"marzec!H28","v":288430},{"$f":"SUM(F29:F36)","v":0},{"$f":"SUM(G29:G36)","v":0},288430]
[null,null,"0470","Wpływy z opłat za zarząd, użytkowanie i użytkowanie wieczyste nieruchomości",{"$f":"marzec!H29","v":8117},null,null,8117]
[null,null,"0690","Wpływy z różnych opłat",{"$f":"marzec!H30","v":0},null,null,0]
[null,null,"0750","Dochody z najmu i dzierżawy składników majątkowych Skarbu Państwa, jednostek samorządu terytorialnego lub innych jednostek zaliczanych do sektora finansów publicznych oraz umów o podobnym charakterze",{"$f":"marzec!H31","v":73800},null,null,73800]
[null,null,"0760","Wpływy z tytułu przekształcenia prawa użytkowania wieczystego przysługującego osobom fizycznym w prawo włsności",{"$f":"marzec!H32","v":0},null,null,0]
[null,null,"0770","Wpłaty z tytułu odpłatnego nabycia prawa własności oraz prawa użytkowania wieczystego nieruchomości ",{"$f":"marzec!H33","v":200000},null,null,200000]
[null,null,"0830","Wpływy z usług",{"$f":"marzec!H34","v":6013},null,null,6013]
[null,null,"0970","Wpływy z różnych dochodów",{"$f":"marzec!H35","v":0},null,null,0]
[null,null,"0920","Pozostałe odsetki",{"$f":"marzec!H36","v":500},null,null,500]
["710",null,null,"Działalność usługowa ",{"$f":"marzec!H37","v":0},{"$f":"F38","v":0},{"$f":"G38","v":0},0]
[null,"71035",null,"Cmentarze",{"$f":"marzec!H38","v":0},{"$f":"SUM(F39)","v":0},{"$f":"SUM(G39)","v":0},0]
[null,null,"2020","Dotacje celowe otrzymane z budżetu państwa na zadania bieżące realizowane przez gminę na podstawie porozumień z organizacjami administracji rządowej",{"$f":"marzec!H39","v":0},null,null,0]
["750",null,null,"Administracja publiczna",{"$f":"marzec!H40","v":79787},{"$f":"F41+F44","v":0},{"$f":"G41+G44","v":0},79787]
[null,"75011",null,"Urzędy wojewódzkie",{"$f":"marzec!H41","v":73287},{"$f":"SUM(F42:F43)","v":0},{"$f":"SUM(G42:G43)","v":0},73287]
[null,null,"2010","Dotacje celowe otrzymane z budżetu państwa na realizację zadań bieżących z zakresu administracji rządowej oraz innych zadań zleconych gminie(związkom gmin) ustawami",{"$f":"marzec!H42","v":71287},null,null,71287]
[null,null,"2360","Dochody jednostek samorządu terytorialnego związane z realizacją zadań z zakresu administracji rządowej oraz innych zadań zleconych ustawami",{"$f":"marzec!H43","v":2000},null,null,2000]
[null,"75023",null,"Urzędy gmin(miast i miast na prawach pow.)",{"$f":"marzec!H44","v":6500},{"$f":"SUM(F45:F47)","v":0},{"$f":"SUM(G45:G47)","v":0},6500]
[null,null,"0690","Wpływy z różnych opłat",{"$f":"marzec!H45","v":3500},null,null,3500]
[null,null,"0830","Wpływy z usług",{"$f":"marzec!H46","v":2000},null,null,2000]
[null,null,"0970","Wpływy z różnych dochodów",{"$f":"marzec!H47","v":1000},null,null,1000]
["751",null,null,"Urzędy naczelnych organów władzypaństwowej, kontroli i ochrony prawa oraz sądownictwa",{"$f":"marzec!H48","v":1026},{"$f":"F49+F51","v":0},{"$f":"G49+G51","v":6369},{"$f":"H49+H51","v":7395}]
[null,"75101",null,"Urzędy naczelnych organów władzypaństwowej, kontroli i ochrony prawa ",{"$f":"marzec!H49","v":1026},{"$f":"SUM(F50)","v":0},{"$f":"SUM(G50)","v":0},1026]
[null,null,"2010","Dotacje celowe otrzymane z budżetu państwa na realizację zadań bieżących z zakresu administracji rządowej oraz innych zadań zleconych gminie(związkom gmin) ustawami",{"$f":"marzec!H50","v":1026},null,null,1026]
[null,"75113",null,"Wybory do Parlamentu Europejskiego",{"$f":"marzec!H51","v":0},{"$f":"F52","v":0},{"$f":"G52","v":6369},6369]
[null,null,"2010","Dotacje celowe otrzymane z budżetu państwa na realizację zadań bieżących z zakresu administracji rządowej oraz innych zadań zleconych gminie(związkom gmin) ustawami",{"$f":"marzec!H52","v":0},null,6369,6369]
["754",null,null,"Bezpieczeństwo publiczne i ochrona przeciwpożarowa",{"$f":"marzec!H53","v":400},{"$f":"F55+F57","v":0},{"$f":"G54+G55","v":0},400]
[null,"75412",null,"Ochotnicze straże pożarne",{"$f":"marzec!H54","v":0},{"$f":"F55","v":0},{"$f":"G55+G56","v":0},0]
[null,null,"2710","Dotacja celowa na pomoc finansową udzielaną między jednostkami samorządu terytorialnego na dofinansowanie własnych zadań bieżących",{"$f":"marzec!H55","v":0},null,null,0]
[null,null,"6300","Wpływy z tytułu pomocy finansowej udzielanej miedzy JST na dofinansowanie własnych zadań inwestycyjnych i zakupów inwestycyjnych",{"$f":"marzec!H56","v":0},null,null,0]
[null,"75414",null,"Obrona cywilna",{"$f":"marzec!H57","v":400},{"$f":"SUM(F58)","v":0},{"$f":"SUM(G58)","v":0},400]
[null,null,"2010","Dotacje celowe otrzymane z budżetu państwa na realizację zadań bieżących z zakresu administracji rządowej oraz innych zadań zleconych gminie(związkom gmin) ustawami",{"$f":"marzec!H58","v":400},null,null,400]
["756",null,null,"Dochody od osób prawnych, od osób fizycznych i od in nych jrednostek nieposiadających osobowości prawnej oraz wydatki związane z ich poborem",{"$f":"marzec!H59","v":2799568},{"$f":"F60+F62+F68+F77+F84","v":0},{"$f":"G60+G62+G68+G77+G84","v":0},2799568]
[null,"75601",null,"Wpływy z podatku dochodowego od osób fizycznych",{"$f":"marzec!H60","v":1500},{"$f":"SUM(F61)","v":0},{"$f":"SUM(G61)","v":0},1500]
[null,null,"0350","Podatek od działalnosci gospodarczej osób fizycznych opłacany w formie karty podatkowej",{"$f":"marzec!H61","v":1500},null,null,1500]
[null,"75615",null,"Wpływy z podatku rolnego, podatku leśnego,podatku od czynności cywilnoprawnych, podatku od spadków i darowizn oraz podatków i opłat lokalnych od osób prawnych i innych jenostek organizacyjnych",{"$f":"marzec!H62","v":506482},{"$f":"SUM(F63:F67)","v":0},{"$f":"SUM(G63:G67)","v":0},506482]
[null,null,"0310","Podatek od nieruchomości",{"$f":"marzec!H63","v":492000},null,null,492000]
[null,null,"0320","Podatek rolny",{"$f":"marzec!H64","v":770},null,null,770]
[null,null,"0330","Podatek leśny",{"$f":"marzec!H65","v":10365},null,null,10365]
[null,null,"0340","Podatek od środków transportowych",{"$f":"marzec!H66","v":2347},null,null,2347]
[null,null,"0910","Odsetki od nieterminowych wpłat z tytułu podatków i opłat",{"$f":"marzec!H67","v":1000},null,null,1000]
[null,"75616",null,"Wpływy z podatku rolnego, podatku leśnego, podatku od spadków i darowizn, podatku od czynności cywilnoprawnych oraz podatków i opłat lokalnych od osób fizycznych",{"$f":"marzec!H68","v":1036900},{"$f":"SUM(F69:F76)","v":0},{"$f":"SUM(G69:G76)","v":0},1036900]
[null,null,"0310","Podatek od nieruchomości",{"$f":"marzec!H69","v":204500},null,null,204500]
[null,null,"0320","Podatek rolny",{"$f":"marzec!H70","v":604000},null,null,604000]
[null,null,"0330","Podatek leśny",{"$f":"marzec!H71","v":74000},null,null,74000]
[null,null,"0340","Podatek od środków transportowych",{"$f":"marzec!H72","v":74400},null,null,74400]
[null,null,"0360","Podatek od spadków i darowizn",{"$f":"marzec!H73","v":10000},null,null,10000]
[null,null,"0430","Wpływy z opłaty targowej",{"$f":"marzec!H74","v":6500},null,null,6500]
[null,null,"0500","Podatek od czynności cywilnoprawnych",{"$f":"marzec!H75","v":53500},null,null,53500]
[null,null,"0910","Odsetki od nieterminowych wpłat z tytułu podatków i opłat",{"$f":"marzec!H76","v":10000},null,null,10000]
[null,"75618",null,"Wpływy z innych opłat stanowiących dochody jednostek samorządu terytorialnego na podstawie ustaw",{"$f":"marzec!H77","v":65000},{"$f":"SUM(F78:F83)","v":0},{"$f":"SUM(G78:G83)","v":0},65000]
[null,null,"0400","Wpływy z opłaty produktowej",{"$f":"marzec!H78","v":500},null,null,500]
[null,null,"0410","Wpływy z opłaty skarbowej",{"$f":"marzec!H79","v":27000},null,null,27000]
[null,null,"0460","Wpływy z opłaty eksploatacyjnej",{"$f":"marzec!H80","v":4000},null,null,4000]
[null,null,"0480","Wpływy z opłat zawydawanie  zezwoleń na sprzedaż alkoholu",{"$f":"marzec!H81","v":30500},null,null,30500]
[null,null,"0490","Wpływy z innych lokalnych opłat pobieranych przez jednostki samorządu terytorialnego na podstawie odrębnych ustaw",{"$f":"marzec!H82","v":3000},null,null,3000]
[null,null,"0910","Odsetki od nieterminowych wpłat z tytułu podatków i opłat",{"$f":"marzec!H83","v":0},null,null,0]
[null,"75621",null,"Udziały gmin w podatkach stanowiących dochód budżetu państwa",{"$f":"marzec!H84","v":1189686},{"$f":"SUM(F85:F86)","v":0},{"$f":"SUM(G85:G86)","v":0},1189686]
[null,null,"0010","Podatek dochodowy od osób fizycznych",{"$f":"marzec!H85","v":1183186},null,null,1183186]
[null,null,"0020","Podatek dochodowy od osób prawnych",{"$f":"marzec!H86","v":6500},null,null,6500]
["758",null,null,"Różne rozliczenia",{"$f":"marzec!H87","v":7685739},{"$f":"F88+F90+F92+F94","v":0},{"$f":"G88+G90+G92+G94","v":0},7685739]
[null,"75801",null,"Część oświatowa subwencji ogólnej dla jednostek samorządu terytorialnego",{"$f":"marzec!H88","v":4401446},{"$f":"SUM(F89)","v":0},{"$f":"SUM(G89)","v":0},4401446]
[null,null,"2920","Subwencje ogólne z budźetu państwa",{"$f":"marzec!H89","v":4401446},null,null,4401446]
[null,"75807",null,"Część wyrównawcza subwencji ogólnej dla gmin",{"$f":"marzec!H90","v":3235728},{"$f":"SUM(F91)","v":0},{"$f":"SUM(G91)","v":0},3235728]
[null,null,"2920","Subwencje ogólne z budżetu państwa",{"$f":"marzec!H91","v":3235728},null,null,3235728]
[null,"75814",null,"Różne rozliczenia finansowe",{"$f":"marzec!H92","v":10000},{"$f":"SUM(F93)","v":0},{"$f":"SUM(G93)","v":0},10000]
[null,null,"0920","Pozostałe odsetki",{"$f":"marzec!H93","v":10000},null,null,10000]
[null,"75831",null,"Część równoważąca subwencje ogólne dla gmin",{"$f":"marzec!H94","v":38565},{"$f":"SUM(F95)","v":0},{"$f":"SUM(G95)","v":0},38565]
[null,null,"2920","Subwencje ogólne z budżetu państwa",{"$f":"marzec!H95","v":38565},null,null,38565]
["801",null,null,"Oświata i wychowanie ",{"$f":"marzec!H96","v":38600},{"$f":"F97+F100+F102","v":0},{"$f":"G97+G100+G102","v":0},38600]
[null,"80101",null,"Szkoły podstawowe",{"$f":"marzec!H97","v":1000},{"$f":"SUM(F98:F99)","v":0},{"$f":"SUM(G98:G99)","v":0},{"$f":"E97-F97+G97","v":1000}]
[null,null,"2030","Dotacje celowe otrzymane z budżetu państwa na realizację własnych  zadań bieżących gmin (związków gmin)",{"$f":"marzec!H98","v":0},null,null,0]
[null,null,"0920","Pozostałe odsetki",{"$f":"marzec!H99","v":1000},null,null,1000]
[null,"80104",null,"Przedszkola",{"$f":"marzec!H100","v":37600},{"$f":"SUM(F101)","v":0},{"$f":"SUM(G101)","v":0},37600]
[null,null,"0830","Wpływy z usług",{"$f":"marzec!H101","v":37600},null,null,37600]
[null,"80195",null,"Pozotała działalność",{"$f":"marzec!H102","v":0},{"$f":"SUM(F103)","v":0},{"$f":"SUM(G103)","v":0},0]
[null,null,"2030","Dotacje celowe otrzymane z budżetu państwa na realizację własnych  zadań bieżących gmin (związków gmin)",{"$f":"marzec!H103","v":0},null,null,0]
["852",null,null,"Pomoc społeczna",{"$f":"marzec!H104","v":2237629},{"$f":"F105+F108+F110+F113+F117+F119","v":0},{"$f":"G105+G108+G110+G113+G117+G119","v":4100},2241729]
[null,"85212",null,"Świadczenia rodzinne, zaliczka alimentacyjn a oraz składki na ubezpieczenia emerytalne i rentowe z ubezpieczenia społecznego",{"$f":"marzec!H105","v":1740000},{"$f":"SUM(F106:F107)","v":0},{"$f":"SUM(G106:G107)","v":0},1740000]
[null,null,"6310","Dotacje celowe otrzymane z budżetu państwa na inwestycje i zakupy inwestycyjne z zakresu administracji rządowej oraz innych zadań zleconych gminom ustawami",{"$f":"marzec!H106","v":5000},null,null,5000]
[null,null,"2010","Dotacje celowe otrzymane z budżetu państwa na realizację zadań bieżących z zakresu administracji rządowej oraz innych zadań zleconych gminie(związkom gmin) ustawami",{"$f":"marzec!H107","v":1740000},null,null,1740000]
[null,"85213",null,"Składki na ubezpieczenie zdrowotne opłacane za osoby pobierajace niektóre swiadczenia z pomocy społecznej oraz niektóre świadczenia rodzinne",{"$f":"marzec!H108","v":7100},{"$f":"SUM(F109)","v":0},{"$f":"SUM(G109)","v":0},7100]
[null,null,"2010","Dotacje celowe otrzymane z budżetu państwa na realizację zadań bieżących z zakresu administracji rządowej oraz innych zadań zleconych gminie(związkom gmin) ustawami",{"$f":"marzec!H109","v":7100},null,null,7100]
[null,"85214",null,"Zasiłki i pomoc w naturze oraz składki na  ubezpieczenia emerytalne i rentowe",{"$f":"marzec!H110","v":134700},{"$f":"SUM(F111:F112)","v":0},{"$f":"SUM(G111:G112)","v":0},134700]
[null,null,"2010","Dotacje celowe otrzymane z budżetu państwa na realizację zadań bieżących z zakresu administracji rządowej oraz innych zadań zleconych gminie(związkom gmin) ustawami",{"$f":"marzec!H111","v":85000},null,null,85000]
[null,null,"2030","Dotacje celowe otrzymane z budżetu państwa na realizację własnych  zadań bieżących gmin (związków gmin)",{"$f":"marzec!H112","v":49700},null,null,49700]
[null,"85219",null,"Ośrodki pomocy społecznej",{"$f":"marzec!H113","v":106500},{"$f":"SUM(F114:F116)","v":0},{"$f":"SUM(G114:G116)","v":4100},110600]
[null,null,"2030","Dotacje celowe otrzymane z budżetu państwa na realizację własnych  zadań bieżących gmin (związków gmin)",{"$f":"marzec!H114","v":104000},null,4100,108100]
[null,null,"0830","Wpływy z usług",{"$f":"marzec!H115","v":1500},null,null,1500]
[null,null,"0920","Pozostale odsetki",{"$f":"marzec!H116","v":1000},null,null,1000]
[null,"85228",null,"Usługi opiekuńcze i specjalistyczne usługi opiekuńcze",{"$f":"marzec!H117","v":18750},{"$f":"SUM(F118)","v":0},{"$f":"SUM(G118)","v":0},18750]
[null,null,"2010","Dotacje celowe otrzymane z budżetu państwa na realizację zadań bieżących z zakresu administracji rządowej oraz innych zadań zleconych gminie(związkom gmin) ustawami",{"$f":"marzec!H118","v":18750},null,null,18750]
[null,"85295",null,"Pozostała działałność",{"$f":"marzec!H119","v":230579},{"$f":"SUM(F120)","v":0},{"$f":"SUM(G120:G121)","v":0},230579]
[null,null,"2030","Dotacje celowe otrzymane z budżetu państwa na realizację własnych  zadań bieżących gmin (związków gmin)",{"$f":"marzec!H120","v":60000},null,null,60000]
[null,null,"2023","Dotacje celowe otrzymane z budżetu państwa na zdania bieżące realizowane przez gminę na podstawie porozumień z organami administracji rządowej",{"$f":"marzec!H121","v":170579},null,null,170579]
["854",null,null,"Edukacyjna opieka wychowawcza",{"$f":"marzec!H122","v":65304},{"$f":"SUM(F123)","v":0},{"$f":"SUM(G123)","v":0},65304]
[null,"85415",null,"Pomoc materialna dla uczniów",{"$f":"marzec!H123","v":65304},{"$f":"SUM(F124)","v":0},{"$f":"SUM(G124)","v":0},65304]
[null,null,"2030","Dotacje celowe otrzymane z budżetu państwa na realizację własnych  zadań bieżących gmin (związków gmin)",{"$f":"marzec!H124","v":65304},null,null,65304]
["900",null,null,"Gospodarka komunalna i ochrona środowiska",{"$f":"marzec!H125","v":0},{"$f":"F126","v":0},{"$f":"G126","v":0},0]
[null,"90095",null,"Pozostała działalność",{"$f":"marzec!H126","v":0},{"$f":"SUM(F127)","v":0},{"$f":"SUM(G127)","v":0},0]
[null,null,"2440","Dotacje przekazane z funduszy celowych na realizację zadań bieżących dla jedostek sektora  finansów publicznych",{"$f":"marzec!H127","v":0},null,null,0]
[]
["Dochody ogółem",null,null,null,{"$f":"marzec!H129","v":13651351},{"$f":"F13+F20+F27+F40+F48+F53+F59+F87+F96+F104+F37","v":0},{"$f":"G13+G20+G27+G40+G48+G53+G59+G87+G96+G104+G37+G122","v":10469},13661820]

{"sheet":"maj","index":3,"n_rows":129,"n_cols":8,"rows_kept":129,"cut":false,"hidden":false,"merged":[[128,0,128,3]]}
[]
[]
[]
[null,null,null,null,"Załącznik nr 1"]
[null,null,null,null,"do zarządzenia nr 10 /09 "]
[null,null,null,null,"Burmistrza Miasta i Gminy  Mordy"]
["Dochody",null,null,null,"z dnia 4 maja 2009r."]
[]
[]
[]
["Dział","Rozdział*","§","Źródło dochodów","Plan na 2009 rok","Zmniejszenia","Zwiększenia","Plan po zmianach"]
[1,2,3,4,5,6,7,8]
["010",null,null,"Rolnictwo i łowiectwo",{"$f":"kwiecień!H13","v":14676},{"$f":"F14+F17","v":0},{"$f":"G14+G17","v":0},{"$f":"E13-F13+G13","v":14676}]
[null,"01010",null,"Infrastruktura wodociągowa i sanitacyjna wsi",{"$f":"kwiecień!H14","v":10000},{"$f":"SUM(F15)","v":0},{"$f":"SUM(G15)","v":0},{"$f":"E14-F14+G14","v":10000}]
[null,null,6290,"Środki na dofinansowanie własnych inwestycji gmin( związków gmin), powiatów(związków powiatów), samorządów województw, pozyskane z innych źródeł",{"$f":"kwiecień!H15","v":10000},null,null,{"$f":"E15-F15+G15","v":10000}]
[null,null,6300,"Wpływy z tytułu pomocy finansowej udzielanej między jednostkami samorządu terytorialnego na dofinansowanie własnych zadań inwestycyjnych i zakupów inwestycyjnych",{"$f":"kwiecień!H16","v":0},null,null,0]
[null,"01095",null,"Pozostała działalność",{"$f":"kwiecień!H17","v":4676},{"$f":"SUM(F18:F19)","v":0},{"$f":"SUM(G18:G19)","v":0},4676]
[null,null,2010,"Dotacje celowe otrzymane z budżetu państwa na realizację zadań bieżących z zakresu administracji rządowej oraz innych zadań zleconych gminie(związkom gmin) ustawami",{"$f":"kwiecień!H18","v":0},null,null,{"$f":"E18-F18+G18","v":0}]
[null,null,"0750","Dochody z najmu i dzierżawy składników majątkowych Skarbu Państwa, jednostek samorządu terytorialnego lub innych jednostek zaliczanych do sektora finansów publicznych oraz umów o podobnym charakterze",{"$f":"kwiecień!H19","v":4676},null,null,{"$f":"E19-F19+G19","v":4676}]
["600",null,null,"Transport i łączność",{"$f":"kwiecień!H20","v":440192},{"$f":"F21+F24","v":0},{"$f":"G21+G24","v":0},440192]
[null,"60014",null,"Drogi publiczne powiatowe",{"$f":"kwiecień!H21","v":15192},{"$f":"SUM(F22:F23)","v":0},{"$f":"SUM(G22:G23)","v":0},15192]
[null,null,2320,"Dotacje celowe otrzymane z powiatu na zadania bieżące realizowane na podstawie porozumień(umów) między jst",{"$f":"kwiecień!H22","v":15192},null,null,15192]
[null,null,6300,"Wpływy z tytułu pomocy finansowej udzielanej między jednostkami samorządu terytorialnego na dofinansowanie własnych zadań inwestycyjnych i zakupów inwestycyjnych",{"$f":"kwiecień!H23","v":0},null,null,0]
[null,"60016",null,"Drogi publiczne gminne",{"$f":"kwiecień!H24","v":425000},{"$f":"SUM(F25:F26)","v":0},{"$f":"SUM(G25)","v":0},425000]
[null,null,6260,"Dotacje otrzymane z funduszy celowych na finansowanie lub dofinansowanie kosztów realizacjiinwestycji i zakupów inwestycyjnych jednostek sektora finansów publicznych",{"$f":"kwiecień!H25","v":0},null,null,0]
[null,null,6330,"Dotacje celowe otrzymane z budżetu państwa na  realizację inwestycji i zakupów   inwestycyjnych własnych gmin (związków gmin) ",{"$f":"kwiecień!H26","v":425000},0,null,425000]
["700",null,null,"Gospodarka mieszkaniowa ",{"$f":"kwiecień!H27","v":288430},{"$f":"F28","v":0},{"$f":"G28","v":0},288430]
[null,"70005",null,"Gospodarka gruntami i nieruchomościami",{"$f":"kwiecień!H28","v":288430},{"$f":"SUM(F29:F36)","v":0},{"$f":"SUM(G29:G36)","v":0},288430]
[null,null,"0470","Wpływy z opłat za zarząd, użytkowanie i użytkowanie wieczyste nieruchomości",{"$f":"kwiecień!H29","v":8117},null,null,8117]
[null,null,"0690","Wpływy z różnych opłat",{"$f":"kwiecień!H30","v":0},null,null,0]
[null,null,"0750","Dochody z najmu i dzierżawy składników majątkowych Skarbu Państwa, jednostek samorządu terytorialnego lub innych jednostek zaliczanych do sektora finansów publicznych oraz umów o podobnym charakterze",{"$f":"kwiecień!H31","v":73800},null,null,73800]
[null,null,"0760","Wpływy z tytułu przekształcenia prawa użytkowania wieczystego przysługującego osobom fizycznym w prawo włsności",{"$f":"kwiecień!H32","v":0},null,null,0]
[null,null,"0770","Wpłaty z tytułu odpłatnego nabycia prawa własności oraz prawa użytkowania wieczystego nieruchomości ",{"$f":"kwiecień!H33","v":200000},null,null,200000]
[null,null,"0830","Wpływy z usług",{"$f":"kwiecień!H34","v":6013},null,null,6013]
[null,null,"0970","Wpływy z różnych dochodów",{"$f":"kwiecień!H35","v":0},null,null,0]
[null,null,"0920","Pozostałe odsetki",{"$f":"kwiecień!H36","v":500},null,null,500]
["710",null,null,"Działalność usługowa ",{"$f":"kwiecień!H37","v":0},{"$f":"F38","v":0},{"$f":"G38","v":0},0]
[null,"71035",null,"Cmentarze",{"$f":"kwiecień!H38","v":0},{"$f":"SUM(F39)","v":0},{"$f":"SUM(G39)","v":0},0]
[null,null,"2020","Dotacje celowe otrzymane z budżetu państwa na zadania bieżące realizowane przez gminę na podstawie porozumień z organizacjami administracji rządowej",{"$f":"kwiecień!H39","v":0},null,null,0]
["750",null,null,"Administracja publiczna",{"$f":"kwiecień!H40","v":79787},{"$f":"F41+F44","v":0},{"$f":"G41+G44","v":0},79787]
[null,"75011",null,"Urzędy wojewódzkie",{"$f":"kwiecień!H41","v":73287},{"$f":"SUM(F42:F43)","v":0},{"$f":"SUM(G42:G43)","v":0},73287]
[null,null,"2010","Dotacje celowe otrzymane z budżetu państwa na realizację zadań bieżących z zakresu administracji rządowej oraz innych zadań zleconych gminie(związkom gmin) ustawami",{"$f":"kwiecień!H42","v":71287},null,null,71287]
[null,null,"2360","Dochody jednostek samorządu terytorialnego związane z realizacją zadań z zakresu administracji rządowej oraz innych zadań zleconych ustawami",{"$f":"kwiecień!H43","v":2000},null,null,2000]
[null,"75023",null,"Urzędy gmin(miast i miast na prawach pow.)",{"$f":"kwiecień!H44","v":6500},{"$f":"SUM(F45:F47)","v":0},{"$f":"SUM(G45:G47)","v":0},6500]
[null,null,"0690","Wpływy z różnych opłat",{"$f":"kwiecień!H45","v":3500},null,null,3500]
[null,null,"0830","Wpływy z usług",{"$f":"kwiecień!H46","v":2000},null,null,2000]
[null,null,"0970","Wpływy z różnych dochodów",{"$f":"kwiecień!H47","v":1000},null,null,1000]
["751",null,null,"Urzędy naczelnych organów władzypaństwowej, kontroli i ochrony prawa oraz sądownictwa",{"$f":"kwiecień!H48","v":7395},{"$f":"F49+F51","v":0},{"$f":"G49+G51","v":0},{"$f":"H49+H51","v":7395}]
[null,"75101",null,"Urzędy naczelnych organów władzypaństwowej, kontroli i ochrony prawa ",{"$f":"kwiecień!H49","v":1026},{"$f":"SUM(F50)","v":0},{"$f":"SUM(G50)","v":0},1026]
[null,null,"2010","Dotacje celowe otrzymane z budżetu państwa na realizację zadań bieżących z zakresu administracji rządowej oraz innych zadań zleconych gminie(związkom gmin) ustawami",{"$f":"kwiecień!H50","v":1026},null,null,1026]
[null,"75113",null,"Wybory do Parlamentu Europejskiego",{"$f":"kwiecień!H51","v":6369},{"$f":"F52","v":0},{"$f":"G52","v":0},6369]
[null,null,"2010","Dotacje celowe otrzymane z budżetu państwa na realizację zadań bieżących z zakresu administracji rządowej oraz innych zadań zleconych gminie(związkom gmin) ustawami",{"$f":"kwiecień!H52","v":6369},null,null,6369]
["754",null,null,"Bezpieczeństwo publiczne i ochrona przeciwpożarowa",{"$f":"kwiecień!H53","v":400},{"$f":"F55+F57","v":0},{"$f":"G54+G55","v":0},400]
[null,"75412",null,"Ochotnicze straże pożarne",{"$f":"kwiecień!H54","v":0},{"$f":"F55","v":0},{"$f":"G55+G56","v":0},0]
[null,null,"2710","Dotacja celowa na pomoc finansową udzielaną między jednostkami samorządu terytorialnego na dofinansowanie własnych zadań bieżących",{"$f":"kwiecień!H55","v":0},null,null,0]
[null,null,"6300","Wpływy z tytułu pomocy finansowej udzielanej miedzy JST na dofinansowanie własnych zadań inwestycyjnych i zakupów inwestycyjnych",{"$f":"kwiecień!H56","v":0},null,null,0]
[null,"75414",null,"Obrona cywilna",{"$f":"kwiecień!H57","v":400},{"$f":"SUM(F58)","v":0},{"$f":"SUM(G58)","v":0},400]
[null,null,"2010","Dotacje celowe otrzymane z budżetu państwa na realizację zadań bieżących z zakresu administracji rządowej oraz innych zadań zleconych gminie(związkom gmin) ustawami",{"$f":"kwiecień!H58","v":400},null,null,400]
["756",null,null,"Dochody od osób prawnych, od osób fizycznych i od in nych jrednostek nieposiadających osobowości prawnej oraz wydatki związane z ich poborem",{"$f":"kwiecień!H59","v":2799568},{"$f":"F60+F62+F68+F77+F84","v":0},{"$f":"G60+G62+G68+G77+G84","v":0},2799568]
[null,"75601",null,"Wpływy z podatku dochodowego od osób fizycznych",{"$f":"kwiecień!H60","v":1500},{"$f":"SUM(F61)","v":0},{"$f":"SUM(G61)","v":0},1500]
[null,null,"0350","Podatek od działalnosci gospodarczej osób fizycznych opłacany w formie karty podatkowej",{"$f":"kwiecień!H61","v":1500},null,null,1500]
[null,"75615",null,"Wpływy z podatku rolnego, podatku leśnego,podatku od czynności cywilnoprawnych, podatku od spadków i darowizn oraz podatków i opłat lokalnych od osób prawnych i innych jenostek organizacyjnych",{"$f":"kwiecień!H62","v":506482},{"$f":"SUM(F63:F67)","v":0},{"$f":"SUM(G63:G67)","v":0},506482]
[null,null,"0310","Podatek od nieruchomości",{"$f":"kwiecień!H63","v":492000},null,null,492000]
[null,null,"0320","Podatek rolny",{"$f":"kwiecień!H64","v":770},null,null,770]
[null,null,"0330","Podatek leśny",{"$f":"kwiecień!H65","v":10365},null,null,10365]
[null,null,"0340","Podatek od środków transportowych",{"$f":"kwiecień!H66","v":2347},null,null,2347]
[null,null,"0910","Odsetki od nieterminowych wpłat z tytułu podatków i opłat",{"$f":"kwiecień!H67","v":1000},null,null,1000]
[null,"75616",null,"Wpływy z podatku rolnego, podatku leśnego, podatku od spadków i darowizn, podatku od czynności cywilnoprawnych oraz podatków i opłat lokalnych od osób fizycznych",{"$f":"kwiecień!H68","v":1036900},{"$f":"SUM(F69:F76)","v":0},{"$f":"SUM(G69:G76)","v":0},1036900]
[null,null,"0310","Podatek od nieruchomości",{"$f":"kwiecień!H69","v":204500},null,null,204500]
[null,null,"0320","Podatek rolny",{"$f":"kwiecień!H70","v":604000},null,null,604000]
[null,null,"0330","Podatek leśny",{"$f":"kwiecień!H71","v":74000},null,null,74000]
[null,null,"0340","Podatek od środków transportowych",{"$f":"kwiecień!H72","v":74400},null,null,74400]
[null,null,"0360","Podatek od spadków i darowizn",{"$f":"kwiecień!H73","v":10000},null,null,10000]
[null,null,"0430","Wpływy z opłaty targowej",{"$f":"kwiecień!H74","v":6500},null,null,6500]
[null,null,"0500","Podatek od czynności cywilnoprawnych",{"$f":"kwiecień!H75","v":53500},null,null,53500]
[null,null,"0910","Odsetki od nieterminowych wpłat z tytułu podatków i opłat",{"$f":"kwiecień!H76","v":10000},null,null,10000]
[null,"75618",null,"Wpływy z innych opłat stanowiących dochody jednostek samorządu terytorialnego na podstawie ustaw",{"$f":"kwiecień!H77","v":65000},{"$f":"SUM(F78:F83)","v":0},{"$f":"SUM(G78:G83)","v":0},65000]
[null,null,"0400","Wpływy z opłaty produktowej",{"$f":"kwiecień!H78","v":500},null,null,500]
[null,null,"0410","Wpływy z opłaty skarbowej",{"$f":"kwiecień!H79","v":27000},null,null,27000]
[null,null,"0460","Wpływy z opłaty eksploatacyjnej",{"$f":"kwiecień!H80","v":4000},null,null,4000]
[null,null,"0480","Wpływy z opłat zawydawanie  zezwoleń na sprzedaż alkoholu",{"$f":"kwiecień!H81","v":30500},null,null,30500]
[null,null,"0490","Wpływy z innych lokalnych opłat pobieranych przez jednostki samorządu terytorialnego na podstawie odrębnych ustaw",{"$f":"kwiecień!H82","v":3000},null,null,3000]
[null,null,"0910","Odsetki od nieterminowych wpłat z tytułu podatków i opłat",{"$f":"kwiecień!H83","v":0},null,null,0]
[null,"75621",null,"Udziały gmin w podatkach stanowiących dochód budżetu państwa",{"$f":"kwiecień!H84","v":1189686},{"$f":"SUM(F85:F86)","v":0},{"$f":"SUM(G85:G86)","v":0},1189686]
[null,null,"0010","Podatek dochodowy od osób fizycznych",{"$f":"kwiecień!H85","v":1183186},null,null,1183186]
[null,null,"0020","Podatek dochodowy od osób prawnych",{"$f":"kwiecień!H86","v":6500},null,null,6500]
["758",null,null,"Różne rozliczenia",{"$f":"kwiecień!H87","v":7685739},{"$f":"F88+F90+F92+F94","v":0},{"$f":"G88+G90+G92+G94","v":0},7685739]
[null,"75801",null,"Część oświatowa subwencji ogólnej dla jednostek samorządu terytorialnego",{"$f":"kwiecień!H88","v":4401446},{"$f":"SUM(F89)","v":0},{"$f":"SUM(G89)","v":0},4401446]
[null,null,"2920","Subwencje ogólne z budźetu państwa",{"$f":"kwiecień!H89","v":4401446},null,null,4401446]
[null,"75807",null,"Część wyrównawcza subwencji ogólnej dla gmin",{"$f":"kwiecień!H90","v":3235728},{"$f":"SUM(F91)","v":0},{"$f":"SUM(G91)","v":0},3235728]
[null,null,"2920","Subwencje ogólne z budżetu państwa",{"$f":"kwiecień!H91","v":3235728},null,null,3235728]
[null,"75814",null,"Różne rozliczenia finansowe",{"$f":"kwiecień!H92","v":10000},{"$f":"SUM(F93)","v":0},{"$f":"SUM(G93)","v":0},10000]
[null,null,"0920","Pozostałe odsetki",{"$f":"kwiecień!H93","v":10000},null,null,10000]
[null,"75831",null,"Część równoważąca subwencje ogólne dla gmin",{"$f":"kwiecień!H94","v":38565},{"$f":"SUM(F95)","v":0},{"$f":"SUM(G95)","v":0},38565]
[null,null,"2920","Subwencje ogólne z budżetu państwa",{"$f":"kwiecień!H95","v":38565},null,null,38565]
["801",null,null,"Oświata i wychowanie ",{"$f":"kwiecień!H96","v":38600},{"$f":"F97+F100+F102","v":0},{"$f":"G97+G100+G102","v":0},38600]
[null,"80101",null,"Szkoły podstawowe",{"$f":"kwiecień!H97","v":1000},{"$f":"SUM(F98:F99)","v":0},{"$f":"SUM(G98:G99)","v":0},{"$f":"E97-F97+G97","v":1000}]
[null,null,"2030","Dotacje celowe otrzymane z budżetu państwa na realizację własnych  zadań bieżących gmin (związków gmin)",{"$f":"kwiecień!H98","v":0},null,null,0]
[null,null,"0920","Pozostałe odsetki",{"$f":"kwiecień!H99","v":1000},null,null,1000]
[null,"80104",null,"Przedszkola",{"$f":"kwiecień!H100","v":37600},{"$f":"SUM(F101)","v":0},{"$f":"SUM(G101)","v":0},37600]
[null,null,"0830","Wpływy z usług",{"$f":"kwiecień!H101","v":37600},null,null,37600]
[null,"80195",null,"Pozotała działalność",{"$f":"kwiecień!H102","v":0},{"$f":"SUM(F103)","v":0},{"$f":"SUM(G103)","v":0},0]
[null,null,"2030","Dotacje celowe otrzymane z budżetu państwa na realizację własnych  zadań bieżących gmin (związków gmin)",{"$f":"kwiecień!H103","v":0},null,null,0]
["852",null,null,"Pomoc społeczna",{"$f":"kwiecień!H104","v":2241729},{"$f":"F105+F108+F110+F113+F117+F119","v":0},{"$f":"G105+G108+G110+G113+G117+G119","v":6486},2248215]
[null,"85212",null,"Świadczenia rodzinne, zaliczka alimentacyjn a oraz składki na ubezpieczenia emerytalne i rentowe z ubezpieczenia społecznego",{"$f":"kwiecień!H105","v":1740000},{"$f":"SUM(F106:F107)","v":0},{"$f":"SUM(G106:G107)","v":0},1740000]
[null,null,"6310","Dotacje celowe otrzymane z budżetu państwa na inwestycje i zakupy inwestycyjne z zakresu administracji rządowej oraz innych zadań zleconych gminom ustawami",{"$f":"kwiecień!H106","v":5000},null,null,5000]
[null,null,"2010","Dotacje celowe otrzymane z budżetu państwa na realizację zadań bieżących z zakresu administracji rządowej oraz innych zadań zleconych gminie(związkom gmin) ustawami",{"$f":"kwiecień!H107","v":1740000},null,null,1740000]
[null,"85213",null,"Składki na ubezpieczenie zdrowotne opłacane za osoby pobierajace niektóre swiadczenia z pomocy społecznej oraz niektóre świadczenia rodzinne",{"$f":"kwiecień!H108","v":7100},{"$f":"SUM(F109)","v":0},{"$f":"SUM(G109)","v":0},7100]
[null,null,"2010","Dotacje celowe otrzymane z budżetu państwa na realizację zadań bieżących z zakresu administracji rządowej oraz innych zadań zleconych gminie(związkom gmin) ustawami",{"$f":"kwiecień!H109","v":7100},null,null,7100]
[null,"85214",null,"Zasiłki i pomoc w naturze oraz składki na  ubezpieczenia emerytalne i rentowe",{"$f":"kwiecień!H110","v":134700},{"$f":"SUM(F111:F112)","v":0},{"$f":"SUM(G111:G112)","v":0},134700]
[null,null,"2010","Dotacje celowe otrzymane z budżetu państwa na realizację zadań bieżących z zakresu administracji rządowej oraz innych zadań zleconych gminie(związkom gmin) ustawami",{"$f":"kwiecień!H111","v":85000},null,null,85000]
[null,null,"2030","Dotacje celowe otrzymane z budżetu państwa na realizację własnych  zadań bieżących gmin (związków gmin)",{"$f":"kwiecień!H112","v":49700},null,null,49700]
[null,"85219",null,"Ośrodki pomocy społecznej",{"$f":"kwiecień!H113","v":110600},{"$f":"SUM(F114:F116)","v":0},{"$f":"SUM(G114:G116)","v":0},110600]
[null,null,"2030","Dotacje celowe otrzymane z budżetu państwa na realizację własnych  zadań bieżących gmin (związków gmin)",{"$f":"kwiecień!H114","v":108100},null,null,108100]
[null,null,"0830","Wpływy z usług",{"$f":"kwiecień!H115","v":1500},null,null,1500]
[null,null,"0920","Pozostale odsetki",{"$f":"kwiecień!H116","v":1000},null,null,1000]
[null,"85228",null,"Usługi opiekuńcze i specjalistyczne usługi opiekuńcze",{"$f":"kwiecień!H117","v":18750},{"$f":"SUM(F118)","v":0},{"$f":"SUM(G118)","v":0},18750]
[null,null,"2010","Dotacje celowe otrzymane z budżetu państwa na realizację zadań bieżących z zakresu administracji rządowej oraz innych zadań zleconych gminie(związkom gmin) ustawami",{"$f":"kwiecień!H118","v":18750},null,null,18750]
[null,"85295",null,"Pozostała działałność",{"$f":"kwiecień!H119","v":230579},{"$f":"SUM(F120)","v":0},{"$f":"SUM(G120:G121)","v":6486},237065]
[null,null,"2030","Dotacje celowe otrzymane z budżetu państwa na realizację własnych  zadań bieżących gmin (związków gmin)",{"$f":"kwiecień!H120","v":60000},null,null,60000]
[null,null,"2023","Dotacje celowe otrzymane z budżetu państwa na zdania bieżące realizowane przez gminę na podstawie porozumień z organami administracji rządowej",{"$f":"kwiecień!H121","v":170579},null,6486,177065]
["854",null,null,"Edukacyjna opieka wychowawcza",{"$f":"kwiecień!H122","v":65304},{"$f":"SUM(F123)","v":0},{"$f":"SUM(G123)","v":0},65304]
[null,"85415",null,"Pomoc materialna dla uczniów",{"$f":"kwiecień!H123","v":65304},{"$f":"SUM(F124)","v":0},{"$f":"SUM(G124)","v":0},65304]
[null,null,"2030","Dotacje celowe otrzymane z budżetu państwa na realizację własnych  zadań bieżących gmin (związków gmin)",{"$f":"kwiecień!H124","v":65304},null,null,65304]
["900",null,null,"Gospodarka komunalna i ochrona środowiska",{"$f":"kwiecień!H125","v":0},{"$f":"F126","v":0},{"$f":"G126","v":0},0]
[null,"90095",null,"Pozostała działalność",{"$f":"kwiecień!H126","v":0},{"$f":"SUM(F127)","v":0},{"$f":"SUM(G127)","v":0},0]
[null,null,"2440","Dotacje przekazane z funduszy celowych na realizację zadań bieżących dla jedostek sektora  finansów publicznych",{"$f":"kwiecień!H127","v":0},null,null,0]
[]
["Dochody ogółem",null,null,null,{"$f":"kwiecień!H129","v":13661820},{"$f":"F13+F20+F27+F40+F48+F53+F59+F87+F96+F104+F37","v":0},{"$f":"G13+G20+G27+G40+G48+G53+G59+G87+G96+G104+G37+G122","v":6486},13668306]

{"sheet":"21 maja","index":4,"n_rows":129,"n_cols":8,"rows_kept":129,"cut":false,"hidden":false,"merged":[[128,0,128,3]]}
[]
[]
[]
[null,null,null,null,"Załącznik nr 1"]
[null,null,null,null,"do uchwały nr XXIX / 139/09 "]
[null,null,null,null,"Rady Miejskiej w   Mordach"]
["Dochody",null,null,null,"z dnia 21 maja 2009r."]
[]
[]
[]
["Dział","Rozdział*","§","Źródło dochodów","Plan na 2009 rok","Zmniejszenia","Zwiększenia","Plan po zmianach"]
[1,2,3,4,5,6,7,8]
["010",null,null,"Rolnictwo i łowiectwo",{"$f":"maj!H13","v":14676},{"$f":"F14+F17","v":0},{"$f":"G14+G17","v":304433},{"$f":"E13-F13+G13","v":319109}]
[null,"01010",null,"Infrastruktura wodociągowa i sanitacyjna wsi",{"$f":"maj!H14","v":10000},{"$f":"SUM(F15)","v":0},{"$f":"SUM(G15)","v":0},{"$f":"E14-F14+G14","v":10000}]
[null,null,6290,"Środki na dofinansowanie własnych inwestycji gmin( związków gmin), powiatów(związków powiatów), samorządów województw, pozyskane z innych źródeł",{"$f":"maj!H15","v":10000},null,null,{"$f":"E15-F15+G15","v":10000}]
[null,null,6300,"Wpływy z tytułu pomocy finansowej udzielanej między jednostkami samorządu terytorialnego na dofinansowanie własnych zadań inwestycyjnych i zakupów inwestycyjnych",{"$f":"maj!H16","v":0},null,null,0]
[null,"01095",null,"Pozostała działalność",{"$f":"maj!H17","v":4676},{"$f":"SUM(F18:F19)","v":0},{"$f":"SUM(G18:G19)","v":304433},309109]
[null,null,2010,"Dotacje celowe otrzymane z budżetu państwa na realizację zadań bieżących z zakresu administracji rządowej oraz innych zadań zleconych gminie(związkom gmin) ustawami",{"$f":"maj!H18","v":0},null,304433,{"$f":"E18-F18+G18","v":304433}]
[null,null,"0750","Dochody z najmu i dzierżawy składników majątkowych Skarbu Państwa, jednostek samorządu terytorialnego lub innych jednostek zaliczanych do sektora finansów publicznych oraz umów o podobnym charakterze",{"$f":"maj!H19","v":4676},null,null,{"$f":"E19-F19+G19","v":4676}]
["600",null,null,"Transport i łączność",{"$f":"maj!H20","v":440192},{"$f":"F21+F24","v":0},{"$f":"G21+G24","v":0},440192]
[null,"60014",null,"Drogi publiczne powiatowe",{"$f":"maj!H21","v":15192},{"$f":"SUM(F22:F23)","v":0},{"$f":"SUM(G22:G23)","v":0},15192]
[null,null,2320,"Dotacje celowe otrzymane z powiatu na zadania bieżące realizowane na podstawie porozumień(umów) między jst",{"$f":"maj!H22","v":15192},null,null,15192]
[null,null,6300,"Wpływy z tytułu pomocy finansowej udzielanej między jednostkami samorządu terytorialnego na dofinansowanie własnych zadań inwestycyjnych i zakupów inwestycyjnych",{"$f":"maj!H23","v":0},null,null,0]
[null,"60016",null,"Drogi publiczne gminne",{"$f":"maj!H24","v":425000},{"$f":"SUM(F25:F26)","v":0},{"$f":"SUM(G25)","v":0},425000]
[null,null,6260,"Dotacje otrzymane z funduszy celowych na finansowanie lub dofinansowanie kosztów realizacjiinwestycji i zakupów inwestycyjnych jednostek sektora finansów publicznych",{"$f":"maj!H25","v":0},null,null,0]
[null,null,6330,"Dotacje celowe otrzymane z budżetu państwa na  realizację inwestycji i zakupów   inwestycyjnych własnych gmin (związków gmin) ",{"$f":"maj!H26","v":425000},0,null,425000]
["700",null,null,"Gospodarka mieszkaniowa ",{"$f":"maj!H27","v":288430},{"$f":"F28","v":0},{"$f":"G28","v":0},288430]
[null,"70005",null,"Gospodarka gruntami i nieruchomościami",{"$f":"maj!H28","v":288430},{"$f":"SUM(F29:F36)","v":0},{"$f":"SUM(G29:G36)","v":0},288430]
[null,null,"0470","Wpływy z opłat za zarząd, użytkowanie i użytkowanie wieczyste nieruchomości",{"$f":"maj!H29","v":8117},null,null,8117]
[null,null,"0690","Wpływy z różnych opłat",{"$f":"maj!H30","v":0},null,null,0]
[null,null,"0750","Dochody z najmu i dzierżawy składników majątkowych Skarbu Państwa, jednostek samorządu terytorialnego lub innych jednostek zaliczanych do sektora finansów publicznych oraz umów o podobnym charakterze",{"$f":"maj!H31","v":73800},null,null,73800]
[null,null,"0760","Wpływy z tytułu przekształcenia prawa użytkowania wieczystego przysługującego osobom fizycznym w prawo włsności",{"$f":"maj!H32","v":0},null,null,0]
[null,null,"0770","Wpłaty z tytułu odpłatnego nabycia prawa własności oraz prawa użytkowania wieczystego nieruchomości ",{"$f":"maj!H33","v":200000},null,null,200000]
[null,null,"0830","Wpływy z usług",{"$f":"maj!H34","v":6013},null,null,6013]
[null,null,"0970","Wpływy z różnych dochodów",{"$f":"maj!H35","v":0},null,null,0]
[null,null,"0920","Pozostałe odsetki",{"$f":"maj!H36","v":500},null,null,500]
["710",null,null,"Działalność usługowa ",{"$f":"maj!H37","v":0},{"$f":"F38","v":0},{"$f":"G38","v":0},0]
[null,"71035",null,"Cmentarze",{"$f":"maj!H38","v":0},{"$f":"SUM(F39)","v":0},{"$f":"SUM(G39)","v":0},0]
[null,null,"2020","Dotacje celowe otrzymane z budżetu państwa na zadania bieżące realizowane przez gminę na podstawie porozumień z organizacjami administracji rządowej",{"$f":"maj!H39","v":0},null,null,0]
["750",null,null,"Administracja publiczna",{"$f":"maj!H40","v":79787},{"$f":"F41+F44","v":0},{"$f":"G41+G44","v":0},79787]
[null,"75011",null,"Urzędy wojewódzkie",{"$f":"maj!H41","v":73287},{"$f":"SUM(F42:F43)","v":0},{"$f":"SUM(G42:G43)","v":0},73287]
[null,null,"2010","Dotacje celowe otrzymane z budżetu państwa na realizację zadań bieżących z zakresu administracji rządowej oraz innych zadań zleconych gminie(związkom gmin) ustawami",{"$f":"maj!H42","v":71287},null,null,71287]
[null,null,"2360","Dochody jednostek samorządu terytorialnego związane z realizacją zadań z zakresu administracji rządowej oraz innych zadań zleconych ustawami",{"$f":"maj!H43","v":2000},null,null,2000]
[null,"75023",null,"Urzędy gmin(miast i miast na prawach pow.)",{"$f":"maj!H44","v":6500},{"$f":"SUM(F45:F47)","v":0},{"$f":"SUM(G45:G47)","v":0},6500]
[null,null,"0690","Wpływy z różnych opłat",{"$f":"maj!H45","v":3500},null,null,3500]
[null,null,"0830","Wpływy z usług",{"$f":"maj!H46","v":2000},null,null,2000]
[null,null,"0970","Wpływy z różnych dochodów",{"$f":"maj!H47","v":1000},null,null,1000]
["751",null,null,"Urzędy naczelnych organów władzypaństwowej, kontroli i ochrony prawa oraz sądownictwa",{"$f":"maj!H48","v":7395},{"$f":"F49+F51","v":0},{"$f":"G49+G51","v":0},{"$f":"H49+H51","v":7395}]
[null,"75101",null,"Urzędy naczelnych organów władzypaństwowej, kontroli i ochrony prawa ",{"$f":"maj!H49","v":1026},{"$f":"SUM(F50)","v":0},{"$f":"SUM(G50)","v":0},1026]
[null,null,"2010","Dotacje celowe otrzymane z budżetu państwa na realizację zadań bieżących z zakresu administracji rządowej oraz innych zadań zleconych gminie(związkom gmin) ustawami",{"$f":"maj!H50","v":1026},null,null,1026]
[null,"75113",null,"Wybory do Parlamentu Europejskiego",{"$f":"maj!H51","v":6369},{"$f":"F52","v":0},{"$f":"G52","v":0},6369]
[null,null,"2010","Dotacje celowe otrzymane z budżetu państwa na realizację zadań bieżących z zakresu administracji rządowej oraz innych zadań zleconych gminie(związkom gmin) ustawami",{"$f":"maj!H52","v":6369},null,null,6369]
["754",null,null,"Bezpieczeństwo publiczne i ochrona przeciwpożarowa",{"$f":"maj!H53","v":400},{"$f":"F55+F57","v":0},{"$f":"G54+G55","v":0},400]
[null,"75412",null,"Ochotnicze straże pożarne",{"$f":"maj!H54","v":0},{"$f":"F55","v":0},{"$f":"G55+G56","v":0},0]
[null,null,"2710","Dotacja celowa na pomoc finansową udzielaną między jednostkami samorządu terytorialnego na dofinansowanie własnych zadań bieżących",{"$f":"maj!H55","v":0},null,null,0]
[null,null,"6300","Wpływy z tytułu pomocy finansowej udzielanej miedzy JST na dofinansowanie własnych zadań inwestycyjnych i zakupów inwestycyjnych",{"$f":"maj!H56","v":0},null,null,0]
[null,"75414",null,"Obrona cywilna",{"$f":"maj!H57","v":400},{"$f":"SUM(F58)","v":0},{"$f":"SUM(G58)","v":0},400]
[null,null,"2010","Dotacje celowe otrzymane z budżetu państwa na realizację zadań bieżących z zakresu administracji rządowej oraz innych zadań zleconych gminie(związkom gmin) ustawami",{"$f":"maj!H58","v":400},null,null,400]
["756",null,null,"Dochody od osób prawnych, od osób fizycznych i od in nych jrednostek nieposiadających osobowości prawnej oraz wydatki związane z ich poborem",{"$f":"maj!H59","v":2799568},{"$f":"F60+F62+F68+F77+F84","v":0},{"$f":"G60+G62+G68+G77+G84","v":0},2799568]
[null,"75601",null,"Wpływy z podatku dochodowego od osób fizycznych",{"$f":"maj!H60","v":1500},{"$f":"SUM(F61)","v":0},{"$f":"SUM(G61)","v":0},1500]
[null,null,"0350","Podatek od działalnosci gospodarczej osób fizycznych opłacany w formie karty podatkowej",{"$f":"maj!H61","v":1500},null,null,1500]
[null,"75615",null,"Wpływy z podatku rolnego, podatku leśnego,podatku od czynności cywilnoprawnych, podatku od spadków i darowizn oraz podatków i opłat lokalnych od osób prawnych i innych jenostek organizacyjnych",{"$f":"maj!H62","v":506482},{"$f":"SUM(F63:F67)","v":0},{"$f":"SUM(G63:G67)","v":0},506482]
[null,null,"0310","Podatek od nieruchomości",{"$f":"maj!H63","v":492000},null,null,492000]
[null,null,"0320","Podatek rolny",{"$f":"maj!H64","v":770},null,null,770]
[null,null,"0330","Podatek leśny",{"$f":"maj!H65","v":10365},null,null,10365]
[null,null,"0340","Podatek od środków transportowych",{"$f":"maj!H66","v":2347},null,null,2347]
[null,null,"0910","Odsetki od nieterminowych wpłat z tytułu podatków i opłat",{"$f":"maj!H67","v":1000},null,null,1000]
[null,"75616",null,"Wpływy z podatku rolnego, podatku leśnego, podatku od spadków i darowizn, podatku od czynności cywilnoprawnych oraz podatków i opłat lokalnych od osób fizycznych",{"$f":"maj!H68","v":1036900},{"$f":"SUM(F69:F76)","v":0},{"$f":"SUM(G69:G76)","v":0},1036900]
[null,null,"0310","Podatek od nieruchomości",{"$f":"maj!H69","v":204500},null,null,204500]
[null,null,"0320","Podatek rolny",{"$f":"maj!H70","v":604000},null,null,604000]
[null,null,"0330","Podatek leśny",{"$f":"maj!H71","v":74000},null,null,74000]
[null,null,"0340","Podatek od środków transportowych",{"$f":"maj!H72","v":74400},null,null,74400]
[null,null,"0360","Podatek od spadków i darowizn",{"$f":"maj!H73","v":10000},null,null,10000]
[null,null,"0430","Wpływy z opłaty targowej",{"$f":"maj!H74","v":6500},null,null,6500]
[null,null,"0500","Podatek od czynności cywilnoprawnych",{"$f":"maj!H75","v":53500},null,null,53500]
[null,null,"0910","Odsetki od nieterminowych wpłat z tytułu podatków i opłat",{"$f":"maj!H76","v":10000},null,null,10000]
[null,"75618",null,"Wpływy z innych opłat stanowiących dochody jednostek samorządu terytorialnego na podstawie ustaw",{"$f":"maj!H77","v":65000},{"$f":"SUM(F78:F83)","v":0},{"$f":"SUM(G78:G83)","v":0},65000]
[null,null,"0400","Wpływy z opłaty produktowej",{"$f":"maj!H78","v":500},null,null,500]
[null,null,"0410","Wpływy z opłaty skarbowej",{"$f":"maj!H79","v":27000},null,null,27000]
[null,null,"0460","Wpływy z opłaty eksploatacyjnej",{"$f":"maj!H80","v":4000},null,null,4000]
[null,null,"0480","Wpływy z opłat zawydawanie  zezwoleń na sprzedaż alkoholu",{"$f":"maj!H81","v":30500},null,null,30500]
[null,null,"0490","Wpływy z innych lokalnych opłat pobieranych przez jednostki samorządu terytorialnego na podstawie odrębnych ustaw",{"$f":"maj!H82","v":3000},null,null,3000]
[null,null,"0910","Odsetki od nieterminowych wpłat z tytułu podatków i opłat",{"$f":"maj!H83","v":0},null,null,0]
[null,"75621",null,"Udziały gmin w podatkach stanowiących dochód budżetu państwa",{"$f":"maj!H84","v":1189686},{"$f":"SUM(F85:F86)","v":0},{"$f":"SUM(G85:G86)","v":0},1189686]
[null,null,"0010","Podatek dochodowy od osób fizycznych",{"$f":"maj!H85","v":1183186},null,null,1183186]
[null,null,"0020","Podatek dochodowy od osób prawnych",{"$f":"maj!H86","v":6500},null,null,6500]
["758",null,null,"Różne rozliczenia",{"$f":"maj!H87","v":7685739},{"$f":"F88+F90+F92+F94","v":0},{"$f":"G88+G90+G92+G94","v":0},7685739]
[null,"75801",null,"Część oświatowa subwencji ogólnej dla jednostek samorządu terytorialnego",{"$f":"maj!H88","v":4401446},{"$f":"SUM(F89)","v":0},{"$f":"SUM(G89)","v":0},4401446]
[null,null,"2920","Subwencje ogólne z budźetu państwa",{"$f":"maj!H89","v":4401446},null,null,4401446]
[null,"75807",null,"Część wyrównawcza subwencji ogólnej dla gmin",{"$f":"maj!H90","v":3235728},{"$f":"SUM(F91)","v":0},{"$f":"SUM(G91)","v":0},3235728]
[null,null,"2920","Subwencje ogólne z budżetu państwa",{"$f":"maj!H91","v":3235728},null,null,3235728]
[null,"75814",null,"Różne rozliczenia finansowe",{"$f":"maj!H92","v":10000},{"$f":"SUM(F93)","v":0},{"$f":"SUM(G93)","v":0},10000]
[null,null,"0920","Pozostałe odsetki",{"$f":"maj!H93","v":10000},null,null,10000]
[null,"75831",null,"Część równoważąca subwencje ogólne dla gmin",{"$f":"maj!H94","v":38565},{"$f":"SUM(F95)","v":0},{"$f":"SUM(G95)","v":0},38565]
[null,null,"2920","Subwencje ogólne z budżetu państwa",{"$f":"maj!H95","v":38565},null,null,38565]
["801",null,null,"Oświata i wychowanie ",{"$f":"maj!H96","v":38600},{"$f":"F97+F100+F102","v":0},{"$f":"G97+G100+G102","v":0},38600]
[null,"80101",null,"Szkoły podstawowe",{"$f":"maj!H97","v":1000},{"$f":"SUM(F98:F99)","v":0},{"$f":"SUM(G98:G99)","v":0},{"$f":"E97-F97+G97","v":1000}]
[null,null,"2030","Dotacje celowe otrzymane z budżetu państwa na realizację własnych  zadań bieżących gmin (związków gmin)",{"$f":"maj!H98","v":0},null,null,0]
[null,null,"0920","Pozostałe odsetki",{"$f":"maj!H99","v":1000},null,null,1000]
[null,"80104",null,"Przedszkola",{"$f":"maj!H100","v":37600},{"$f":"SUM(F101)","v":0},{"$f":"SUM(G101)","v":0},37600]
[null,null,"0830","Wpływy z usług",{"$f":"maj!H101","v":37600},null,null,37600]
[null,"80195",null,"Pozotała działalność",{"$f":"maj!H102","v":0},{"$f":"SUM(F103)","v":0},{"$f":"SUM(G103)","v":0},0]
[null,null,"2030","Dotacje celowe otrzymane z budżetu państwa na realizację własnych  zadań bieżących gmin (związków gmin)",{"$f":"maj!H103","v":0},null,null,0]
["852",null,null,"Pomoc społeczna",{"$f":"maj!H104","v":2248215},{"$f":"F105+F108+F110+F113+F117+F119","v":0},{"$f":"G105+G108+G110+G113+G117+G119","v":0},2248215]
[null,"85212",null,"Świadczenia rodzinne, zaliczka alimentacyjn a oraz składki na ubezpieczenia emerytalne i rentowe z ubezpieczenia społecznego",{"$f":"maj!H105","v":1740000},{"$f":"SUM(F106:F107)","v":0},{"$f":"SUM(G106:G107)","v":0},1740000]
[null,null,"6310","Dotacje celowe otrzymane z budżetu państwa na inwestycje i zakupy inwestycyjne z zakresu administracji rządowej oraz innych zadań zleconych gminom ustawami",{"$f":"maj!H106","v":5000},null,null,5000]
[null,null,"2010","Dotacje celowe otrzymane z budżetu państwa na realizację zadań bieżących z zakresu administracji rządowej oraz innych zadań zleconych gminie(związkom gmin) ustawami",{"$f":"maj!H107","v":1740000},null,null,1740000]
[null,"85213",null,"Składki na ubezpieczenie zdrowotne opłacane za osoby pobierajace niektóre swiadczenia z pomocy społecznej oraz niektóre świadczenia rodzinne",{"$f":"maj!H108","v":7100},{"$f":"SUM(F109)","v":0},{"$f":"SUM(G109)","v":0},7100]
[null,null,"2010","Dotacje celowe otrzymane z budżetu państwa na realizację zadań bieżących z zakresu administracji rządowej oraz innych zadań zleconych gminie(związkom gmin) ustawami",{"$f":"maj!H109","v":7100},null,null,7100]
[null,"85214",null,"Zasiłki i pomoc w naturze oraz składki na  ubezpieczenia emerytalne i rentowe",{"$f":"maj!H110","v":134700},{"$f":"SUM(F111:F112)","v":0},{"$f":"SUM(G111:G112)","v":0},134700]
[null,null,"2010","Dotacje celowe otrzymane z budżetu państwa na realizację zadań bieżących z zakresu administracji rządowej oraz innych zadań zleconych gminie(związkom gmin) ustawami",{"$f":"maj!H111","v":85000},null,null,85000]
[null,null,"2030","Dotacje celowe otrzymane z budżetu państwa na realizację własnych  zadań bieżących gmin (związków gmin)",{"$f":"maj!H112","v":49700},null,null,49700]
[null,"85219",null,"Ośrodki pomocy społecznej",{"$f":"maj!H113","v":110600},{"$f":"SUM(F114:F116)","v":0},{"$f":"SUM(G114:G116)","v":0},110600]
[null,null,"2030","Dotacje celowe otrzymane z budżetu państwa na realizację własnych  zadań bieżących gmin (związków gmin)",{"$f":"maj!H114","v":108100},null,null,108100]
[null,null,"0830","Wpływy z usług",{"$f":"maj!H115","v":1500},null,null,1500]
[null,null,"0920","Pozostale odsetki",{"$f":"maj!H116","v":1000},null,null,1000]
[null,"85228",null,"Usługi opiekuńcze i specjalistyczne usługi opiekuńcze",{"$f":"maj!H117","v":18750},{"$f":"SUM(F118)","v":0},{"$f":"SUM(G118)","v":0},18750]
[null,null,"2010","Dotacje celowe otrzymane z budżetu państwa na realizację zadań bieżących z zakresu administracji rządowej oraz innych zadań zleconych gminie(związkom gmin) ustawami",{"$f":"maj!H118","v":18750},null,null,18750]
[null,"85295",null,"Pozostała działałność",{"$f":"maj!H119","v":237065},{"$f":"SUM(F120)","v":0},{"$f":"SUM(G120:G121)","v":0},237065]
[null,null,"2030","Dotacje celowe otrzymane z budżetu państwa na realizację własnych  zadań bieżących gmin (związków gmin)",{"$f":"maj!H120","v":60000},null,null,60000]
[null,null,"2023","Dotacje celowe otrzymane z budżetu państwa na zdania bieżące realizowane przez gminę na podstawie porozumień z organami administracji rządowej",{"$f":"maj!H121","v":177065},null,null,177065]
["854",null,null,"Edukacyjna opieka wychowawcza",{"$f":"maj!H122","v":65304},{"$f":"SUM(F123)","v":0},{"$f":"SUM(G123)","v":0},65304]
[null,"85415",null,"Pomoc materialna dla uczniów",{"$f":"maj!H123","v":65304},{"$f":"SUM(F124)","v":0},{"$f":"SUM(G124)","v":0},65304]
[null,null,"2030","Dotacje celowe otrzymane z budżetu państwa na realizację własnych  zadań bieżących gmin (związków gmin)",{"$f":"maj!H124","v":65304},null,null,65304]
["900",null,null,"Gospodarka komunalna i ochrona środowiska",{"$f":"maj!H125","v":0},{"$f":"F126","v":0},{"$f":"G126","v":8000},8000]
[null,"90095",null,"Pozostała działalność",{"$f":"maj!H126","v":0},{"$f":"SUM(F127)","v":0},{"$f":"SUM(G127)","v":8000},8000]
[null,null,"2440","Dotacje przekazane z funduszy celowych na realizację zadań bieżących dla jedostek sektora  finansów publicznych",{"$f":"maj!H127","v":0},null,8000,8000]
[]
["Dochody ogółem",null,null,null,{"$f":"maj!H129","v":13668306},{"$f":"F13+F20+F27+F40+F48+F53+F59+F87+F96+F104+F37","v":0},{"$f":"G13+G20+G27+G40+G48+G53+G59+G87+G96+G104+G37+G122+G125","v":312433},13980739]